Workbook

Sheet READ ME (hidden)
A1: No | B1: Onglet | C1: Description | D1: Remarque
B2: EPSM | C2: Feuille de calcul dotation | D2: Calcul
A3: A | B3: Liste déroulante - établissements concernés | C3: Mettre à jour avec onglet 2 et liste adresses mails | D3: Tenir compte établissements hors périmètre
A4: B | B4: Etablissements hors périmètre | C4: Vérifier et mettre à jour
A5: 1 | B5: T21 SOHO vo finale | C5: Etabl, lits, missions, EPTHote (coefficient EPT) | D5: Données SOHO
A6: 2 | B6: T21 SOHO 981-982 | C6: EPSM : prestations d'accompagnement socio-éducatif | D6: Données SOHO
A7: 3 | B7: T21 SOHO décisions particulières | C7: Compléments de dotation exceptionnels | D7: Données SOHO
A8: 4 | B8: Données Plaisir | C8: Minutes moyennes de soins, deux derniers extrants | D8: Données COGNOS, 4 janvier 2021
A9: 5 | B9: EPSM - Cibles transitoires qualification | C9: Selon directive transitoire et annexe 1 2020/2021 | D9: Annexe à directive transitoire
A10: 6 | B10: R19_vo1_dotations - récapitulation | C10: Données au 24.11.2020. OK vérifié le 4 janvier 2021 | D10: Données dossier Reporting
A11: 7 | B11: DOC DOT | C11: Documentation dotation Fonctions NREF et FP

Sheet EPSM
B1: Etablissements psycho-sociaux médicalisés (EPSM)
B2: FEUILLE DE CALCUL DE DOTATION 2021 - Annexe 2
C3: Mise à jour : | E3: 2021-01-05
C4: Applicable : | E4: Année 2021
B5: Cette feuille de calcul présente la synthèse de vos dotations financées et exigées par la directive transitoire du DSAS du 17 décembre 2019 concernant les exigences de dotation minimale en personnel de soins et d'accompagnement socio-éducatif dans les établissements psycho-sociaux médicalisés (EPSM). Les numéros indiqués font référence à cette directive et à son annexe 1 (avenant 2021).
B6: Les dotations pour les cas de rigueur LAPRAMS ou octroyées par le SPEN ne sont pas prises en compte dans la présente feuille de calcul.
B8: Etablissement
B10: No & Nom établissement (choisir dans la liste déroulante) | D10: 217 ALEXANDRA EPSM
B12: Mission | D12: =VLOOKUP($D$14,$A$146:$I$181,4,FALSE) -> Maintien des acquis et réhabilitation | E12: =VLOOKUP($D$14,$B$146:$H$178,7,FALSE) ->  | F12: =VLOOKUP($D$14,$B$146:$H$178,7,FALSE) ->  | G12: =VLOOKUP($D$14,$B$146:$H$178,7,FALSE) ->  | H12: =VLOOKUP($D$14,$B$146:$H$178,7,FALSE) -> 
B14: Numéro UT (SOHO) | D14: =VLOOKUP($D$10,'A.Liste déroulante'!$A$2:$C$37,2,FALSE) -> 217
B16: Lits C dédiés au long séjour financés (*) | D16: =$C$49 -> 17 | G16: (*) Nombre de lits reconnus pour l'année 2021.
B18: Lits C dédiés au court séjour conventionné financés (*): | D18: =$G$49 -> 0
B21: Long séjour : Minutes-soins nettes requises en moyenne par jour * | F21: Données extrants PLAISIR à saisir
D23: Données PLAISIR des EXTRANTS d'octobre 2018 et de mai 2019
D25: Avant-dernier extrant PLAISIR | G25: Dernier extrant PLAISIR
B28: LR3, colonne MSN OPAS, TOTAL
B30: Colonne Jour MSN OPAS (calculée) | D30: =D28-D32 -> 0 | G30: =G28-G32 -> 0
B32: LR3, colonne Nuit MSN
B33: * La dotation correspondant au financement résiduel complémentaire "Plaisir 13+" n'est pas incluse.
B35: Paramètres de calcul | D35: Soins
B37: Heures par EPT et par année (jour) | D37: =$D$70 -> 1711
B39: Taux de financement | D39: =$D$74 -> 0.906
D44: Avant dernier extrant | G44: Dernier extrant
B45: Jour (calculé) | D45: =+D30 -> 0 | G45: =+G30 -> 0
B47: Nuit | D47: =D32 -> 0 | G47: =G32 -> 0
B49: Lits C de LS (présaisie) | C49: =VLOOKUP($D$14,$A$146:$G$181,6,FALSE) -> 17 | F49: Lits C de CS (présaisie) | G49: =VLOOKUP($D$14,$A$146:$G$181,7,FALSE) -> 0
B51: Soins
A53: Heures annuelles de soins nettes par EPT
A54: Jours travaillés par année
A55: Jours | D55: 365
A56: Week end | D56: -104
A57: Vacances | D57: -25
A58: Vacances : 6ème semaine 50+ (33% de l'effectif) | D58: -1.65 | F58: Mise à jour base données 2018 - dossier fin soins
A59: Jours fériés | D59: -10
A60: Absence maladie | D60: -2
A61: Absence formation | D61: -3
A62: Total | D62: =SUM(D55:D61) -> 219.35
A64: Heures de soins nettes par jour
A65: Horaire de base 42h30 / semaine | D65: 8.5
A66: pause 30 min | D66: -0.5
A67: Heure en moins dès 2009 | D67: -0.2
A68: Total | D68: =SUM(D65:D67) -> 7.8
D69: =D62*D68 -> 1710.93
A70: Total heures de soins nettes par EPT | D70: 1711 | F70: Arrondi - voir dossier 2018 financement soins
A74: Taux de financement | D74: 0.906 | F74: Stable- révision prévue sur base reporting 2020
A76: Minutes de soins requises par année
B77: Jour | D77: =IF(ISERROR(((D45+G45)/2 + 21.23 * 88%) * D16 * 365 * 98%),0,((D45+G45)/2 + 21.23 * 88%) * D16 * 365 * 98%) -> 113605.8062 | F77: 88% jour, 12% nuit : mise à jour base données 2018 (dossier fin soins), harmonisé avec calcul coût de l'heure productive 2020-2021
B78: Nuit | D78: =((D47+G47)/2 + 21.23 * 12%) * D16 * 365 * 98% -> 15491.70084
A84: Traitements spécifiques au chapitre 3.2.1: Renforcement des veilles. Le barème en lits s'applique au total des lits de LS+CS autorisés.
B86: "Maintien des acquis et réhabilitation" et "Insertion socio-professionnelle"
B87: Nb de lits min. | C87: Nb de lits max. | D87: Veille | E87: Renforc. Soir | F87: Total exigé
B88: 1 | C88: 30 | D88: 2.3 | E88: 0 | F88: =D88+E88 -> 2.3
B89: 31 | C89: 39 | D89: 2.3 | E89: 0.9 | F89: =D89+E89 -> 3.2
B90: 40 | C90: 79 | D90: 4.6 | E90: 0 | F90: 4.6
B92: Réduction des risques et engagement dans le suivi
B93: Nb de lits min. | C93: Nb de lits max. | D93: Veille | E93: Renforc. Soir | F93: Total exigé
B94: 1 | C94: 30 | D94: 2.3 | E94: 0 | F94: =D94+E94 -> 2.3
B95: 31 | C95: 39 | D95: 4.6 | E95: 0 | F95: =D95+E95 -> 4.6
B96: 40 | C96: 79 | D96: 4.6 | E96: 0 | F96: 4.6
B99: Nombre d'EPT financés | D99: Dotation soins | G99: Dotation socio-éducative - Long et court séjour | H99: Dotation totale soins et socio-éducative
D100: Jour | E100: Nuit /Soir | F100: Total | G100: Total | H100: Total
B102: Nombre d'EPT requis selon évaluation PLAISIR | D102: =IF(OR(D28=0,G28=0),0,D77/($D$70*60)) -> 0 | E102: =IF(OR(D28=0,G28=0),0,D78/($D$70*60)) -> 0 | F102: =+E102+D102 -> 0
B104: Nombre d'EPT selon taux de financement | D104: =D102*$D$39 -> 0 | E104: =E102*$D$39 -> 0 | F104: =+E104+D104 -> 0 | G104: =VLOOKUP($D$10,Tableau5[[Name + Long name]:[EPT SOHO ASE T2021]],6,FALSE) -> 1.7 | H104: =F104+G104 -> 1.7
B106: EPT minimum de veille | E106: =MAX((VLOOKUP(($D$16+$D$18),$B$88:$F$90,3,TRUE)),0) -> 2.3 | F106: =D106+E106 -> 2.3
B108: Nombre d'EPT après compensation jour/nuit (si nécessaire) | D108: =MAX(F104-E108,0) -> 0 | E108: =MAX(E106,E104) -> 2.3 | F108: =+E108+D108 -> 2.3
B110: 5.3.1 Renforts horaire du soir (19h-23h) en EPT ** | E110: =IF($D$12="Réduction des risques et engagement dans le suivi",0,IF(VLOOKUP(($D$16+$D$18),$B$88:$F$90,4,TRUE)>0,MAX(3.2-E108,0),0)) -> 0 | F110: =D110+E110 -> 0 | H110: =F110+G110 -> 0
B112: 5.3.2 Mission "Réd.risques et engag." >=31 lits : renfort veilles *** | E112: =IF($D$12="Réduction des risques et engagement dans le suivi",MAX((VLOOKUP(($D$16+$D$18),$B$94:$F$95,5,TRUE)-$E$108-$E$110),0),0) -> 0 | F112: =D112+E112 -> 0 | H112: =F112+G112 -> 0
B114: 3 a) Court séjour conventionné : + 0.5 EPT auxiliaire par lit dédié | D114: =D18*0.5 -> 0 | F114: =+E114+D114 -> 0 | H114: =F114+G114 -> 0
B116: Nombre d'EPT financés | D116: =SUM(D108:D114) -> 0 | E116: =SUM(E108:E114) -> 2.3 | F116: =D116+E116 -> 2.3 | G116: =G104 -> 1.7 | H116: =F116+G116 -> 4
B118: Nombre d'EPT minimum exigés (soins : 10% de tolérance) | D118: =D116*0.9 -> 0 | E118: =E116 -> 2.3 | F118: =D118+E118 -> 2.3 | G118: =G116 -> 1.7 | H118: =F118+G118 -> 4
B120: 5.1 Minimas absolus niveau expertise (HES/ES) | F120: 1.26 | H120: 3.03
B122: 5.5 Financement supplémentaire | D122: =IF(VLOOKUP($D$14,'3. T21vo4_déc partic'!$A$2:$M$39,10,FALSE)=0," ",VLOOKUP($D$14,'3. T21vo4_déc partic'!$A$2:$M$39,10,FALSE)) ->  | G122: =VLOOKUP($D$14,'3. T21vo4_déc partic'!$A$2:$M$39,13,FALSE) -> 0 | H122: =G122 -> 0
B123: ** Les renforts pour l'horaire du soir font l'objet d'un financement spécifique.
B124: *** Pour cette mission, les renforts veilles font l'objet de financements spécifiques.
B127: 5.2 Qualification - Cibles transitoires indicatives | D127: =D12 -> Maintien des acquis et réhabilitation
B129: Cibles transitoires indicatives - Degrés de qualification - Long séjour et court séjour conventionné | C129: 31 - Personnel de soins (hors veilles hors autres*) | E129: 32 - Personnel socio-éducatif (hors autres*) | G129: 31 et 32 - Personnel soins et socio-éducatif (hors veilles hors autres)
C130: Cible en % | D130: Cible en EPT | E130: Cible en % | F130: Cible en EPT | G130: Cible en EPT | H130: Reporting 2019
B131: Niveau d'expertise (HES/ES) | C131: =IF(OR($D$12="Réduction des risques et engagement dans le suivi",$D$12="Insertion socio-professionnelle"),'5. Qualif _Cibles transitoires'!$E$7,'5. Qualif _Cibles transitoires'!$C$7) -> Min 40% | D131: =$D$116*0.4 -> 0 | E131: =IF($D$14=562,'5. Qualif _Cibles transitoires'!$N$7,IF($D$12="Maintien des acquis et réhabilitation",'5. Qualif _Cibles transitoires'!$D$7,IF(OR($D$12="Réduction des risques et engagement dans le suivi",$D$12="Insertion socio-professionnelle"),'5. Qualif _Cibles transitoires'!$F$7))) -> Min 50% | F131: =IF($D$14=562,'5. Qualif _Cibles transitoires'!$J$7,IF($D$12="Maintien des acquis et réhabilitation",$G$116*0.5,IF(OR($D$12="Réduction des risques et engagement dans le suivi",$D$12="Insertion socio-professionnelle"),$G$116*1))) -> 0.85 | G131: ="Min " & ROUND((D131+F131),2) -> Min 0.85 | H131: =VLOOKUP($D$14,'6. R19v01 DOT VAL'!$A$2:$F$37,4,FALSE) -> 3.03
B132: Niveau assistance (CFC) | C132: =IF(OR($D$12="Réduction des risques et engagement dans le suivi",$D$12="Insertion socio-professionnelle"),'5. Qualif _Cibles transitoires'!$E$8,'5. Qualif _Cibles transitoires'!$C$8) -> Max 40% | D132: =$D$116*0.4 -> 0 | E132: =IF($D$14=562,'5. Qualif _Cibles transitoires'!$N$8,IF($D$12="Maintien des acquis et réhabilitation",'5. Qualif _Cibles transitoires'!$D$8,IF(OR($D$12="Réduction des risques et engagement dans le suivi",$D$12="Insertion socio-professionnelle"),'5. Qualif _Cibles transitoires'!$F$8))) -> Max 50% | F132: =IF($D$14=562,'5. Qualif _Cibles transitoires'!$J$8,IF($D$12="Maintien des acquis et réhabilitation",$G$116*0.5,IF(OR($D$12="Réduction des risques et engagement dans le suivi",$D$12="Insertion socio-professionnelle"),$G$116*0))) -> 0.85 | G132: ="Max " & ROUND((D132+F132),2) -> Max 0.85 | H132: =VLOOKUP($D$14,'6. R19v01 DOT VAL'!$A$2:$F$37,5,FALSE) -> 1.39
B133: Niveau soutien (auxiliaire) | C133: =IF(OR($D$12="Réduction des risques et engagement dans le suivi",$D$12="Insertion socio-professionnelle"),'5. Qualif _Cibles transitoires'!$E$9,'5. Qualif _Cibles transitoires'!$C$9) -> Max 20% | D133: =$D$116*0.2 -> 0 | E133: =IF($D$14=562,'5. Qualif _Cibles transitoires'!$N$9,IF($D$12="Maintien des acquis et réhabilitation",'5. Qualif _Cibles transitoires'!$D$9,IF(OR($D$12="Réduction des risques et engagement dans le suivi",$D$12="Insertion socio-professionnelle"),'5. Qualif _Cibles transitoires'!$F$9))) -> 0 | F133: =IF($D$14=562,'5. Qualif _Cibles transitoires'!$J$9,IF($D$12="Maintien des acquis et réhabilitation",$G$116*0,IF(OR($D$12="Réduction des risques et engagement dans le suivi",$D$12="Insertion socio-professionnelle"),$G$116*0))) -> 0 | G133: ="Max " & ROUND((D133+F133),2) -> Max 0 | H133: =VLOOKUP($D$14,'6. R19v01 DOT VAL'!$A$2:$F$37,6,FALSE) -> 1.57
B134: Total hors veilles hors autres | C134: 1 | D134: =SUM(D131:D133) -> 0 | E134: 1 | F134: =SUM(F131:F133) -> 1.7 | G134: =D134+F134 -> 1.7 | H134: =IF(OR(H131="n.a",H132="n.a",H133="n.a"),"n.a",H131+H132+H133) -> 5.99
B135: * Personnel de soins (31) sans veilleurs (31550) et sans autres (stagiaires, élèves, apprentis) (319XX).
B136: ** Personnel socio-éducatif (32) sans autres (stagiaires, élèves, apprentis) (329XX).
F137: Pour info : Reporting 2019 Veilleurs (31550) | H137: =VLOOKUP($D$14,'6. R19v01 DOT VAL'!$A$2:$Q$37,16,FALSE) -> 2.03
F138: Pour info : Reporting 2019 Fonctions NREF (31000 et 32000) : | H138: =VLOOKUP($D$14,'6. R19v01 DOT VAL'!$A$2:$Q$37,7,FALSE) -> 0
F139: Pour info : Reporting 2019 Fonctions FP FP (319xx et 329xx) | H139: =VLOOKUP($D$14,'6. R19v01 DOT VAL'!$A$2:$P$37,8,FALSE) -> 1.36
G141: Date d'impression : | H141: =TODAY() -> 2021-01-05
A145: Name | B145: LongName | C145: Name + Long name | D145: ColMissionPa | E145: CalLits T2021 | F145: Lits LS calculé | G145: Lits CS Entré manuellement | H145: EPT SOHO ASE T2021
A146: 217 | B146: =VLOOKUP($A146,Tableau15[],2,FALSE) -> ALEXANDRA EPSM | C146: =A146&" "&B146 -> 217 ALEXANDRA EPSM | D146: =VLOOKUP($A146,Tableau15[],5,FALSE) -> Maintien des acquis et réhabilitation | E146: =VLOOKUP($A146,Tableau15[],7,FALSE) -> 17 | F146: =E146-G146 -> 17 | G146: 0 | H146: =VLOOKUP(Tableau5[[#This Row],[Name]],'2. T21v04_981_982'!$A$1:$M$42,12,FALSE) -> 1.7
A147: 254 | B147: =VLOOKUP($A147,Tableau15[],2,FALSE) -> BOIS-GENTIL RUCHONNET EPSM | C147: 254 BOIS-GENTIL RUCHONNET EPSM | D147: =VLOOKUP($A147,Tableau15[],5,FALSE) -> Maintien des acquis et réhabilitation | E147: =VLOOKUP($A147,Tableau15[],7,FALSE) -> 22 | F147: 22 | G147: 0 | H147: =VLOOKUP(Tableau5[[#This Row],[Name]],'2. T21v04_981_982'!$A$1:$M$42,12,FALSE) -> 2.2
A148: 255 | B148: =VLOOKUP($A148,Tableau15[],2,FALSE) -> BOIS-GENTIL VALLON EPSM | C148: 255 BOIS-GENTIL VALLON EPSM | D148: =VLOOKUP($A148,Tableau15[],5,FALSE) -> Réduction des risques et engagement dans le suivi | E148: =VLOOKUP($A148,Tableau15[],7,FALSE) -> 32 | F148: 32 | G148: 0 | H148: =VLOOKUP(Tableau5[[#This Row],[Name]],'2. T21v04_981_982'!$A$1:$M$42,12,FALSE) -> 4.8
A149: 260 | B149: =VLOOKUP($A149,Tableau15[],2,FALSE) -> BORDE EPSM | C149: 260 BORDE EPSM | D149: =VLOOKUP($A149,Tableau15[],5,FALSE) -> Maintien des acquis et réhabilitation | E149: =VLOOKUP($A149,Tableau15[],7,FALSE) -> 25 | F149: 25 | G149: 0 | H149: =VLOOKUP(Tableau5[[#This Row],[Name]],'2. T21v04_981_982'!$A$1:$M$42,12,FALSE) -> 2.5
A150: 302 | B150: =VLOOKUP($A150,Tableau15[],2,FALSE) -> TILLEULS EPSM | C150: 302 TILLEULS EPSM | D150: =VLOOKUP($A150,Tableau15[],5,FALSE) -> Maintien des acquis et réhabilitation | E150: =VLOOKUP($A150,Tableau15[],7,FALSE) -> 27 | F150: 27 | G150: 0 | H150: =VLOOKUP(Tableau5[[#This Row],[Name]],'2. T21v04_981_982'!$A$1:$M$42,12,FALSE) -> 2.7
A151: 303 | B151: =VLOOKUP($A151,Tableau15[],2,FALSE) -> CLOS BERCHER EPSM | C151: 303 CLOS BERCHER EPSM | D151: =VLOOKUP($A151,Tableau15[],5,FALSE) -> Maintien des acquis et réhabilitation | E151: =VLOOKUP($A151,Tableau15[],7,FALSE) -> 27 | F151: 27 | G151: 0 | H151: =VLOOKUP(Tableau5[[#This Row],[Name]],'2. T21v04_981_982'!$A$1:$M$42,12,FALSE) -> 2.7
A152: 313 | B152: =VLOOKUP($A152,Tableau15[],2,FALSE) -> BRU EPSM | C152: 313 BRU EPSM | D152: =VLOOKUP($A152,Tableau15[],5,FALSE) -> Maintien des acquis et réhabilitation | E152: =VLOOKUP($A152,Tableau15[],7,FALSE) -> 61 | F152: 61 | G152: 0 | H152: =VLOOKUP(Tableau5[[#This Row],[Name]],'2. T21v04_981_982'!$A$1:$M$42,12,FALSE) -> 6.1
A153: 321 | B153: =VLOOKUP($A153,Tableau15[],2,FALSE) -> COLOMBIERE EPSM | C153: 321 COLOMBIERE EPSM | D153: =VLOOKUP($A153,Tableau15[],5,FALSE) -> Maintien des acquis et réhabilitation | E153: =VLOOKUP($A153,Tableau15[],7,FALSE) -> 18 | F153: 18 | G153: 0 | H153: =VLOOKUP(Tableau5[[#This Row],[Name]],'2. T21v04_981_982'!$A$1:$M$42,12,FALSE) -> 1.8
A154: 324 | B154: =VLOOKUP($A154,Tableau15[],2,FALSE) -> PRE CARRE EPSM | C154: 324 PRE CARRE EPSM | D154: =VLOOKUP($A154,Tableau15[],5,FALSE) -> Maintien des acquis et réhabilitation | E154: =VLOOKUP($A154,Tableau15[],7,FALSE) -> 18 | F154: 18 | G154: 0 | H154: =VLOOKUP(Tableau5[[#This Row],[Name]],'2. T21v04_981_982'!$A$1:$M$42,12,FALSE) -> 1.8
A155: 343 | B155: =VLOOKUP($A155,Tableau15[],2,FALSE) -> CHAMP FLEURI EPSM | C155: 343 CHAMP FLEURI EPSM | D155: =VLOOKUP($A155,Tableau15[],5,FALSE) -> Réduction des risques et engagement dans le suivi | E155: =VLOOKUP($A155,Tableau15[],7,FALSE) -> 38 | F155: 38 | G155: 0 | H155: =VLOOKUP(Tableau5[[#This Row],[Name]],'2. T21v04_981_982'!$A$1:$M$42,12,FALSE) -> 5.7
A156: 348 | B156: =VLOOKUP($A156,Tableau15[],2,FALSE) -> COLLONGES EPSM | C156: 348 COLLONGES EPSM | D156: =VLOOKUP($A156,Tableau15[],5,FALSE) -> Maintien des acquis et réhabilitation | E156: =VLOOKUP($A156,Tableau15[],7,FALSE) -> 15 | F156: 15 | G156: 0 | H156: =VLOOKUP(Tableau5[[#This Row],[Name]],'2. T21v04_981_982'!$A$1:$M$42,12,FALSE) -> 1.5
A157: 357 | B157: =VLOOKUP($A157,Tableau15[],2,FALSE) -> ORPHEE EPSM | C157: 357 ORPHEE EPSM | D157: =VLOOKUP($A157,Tableau15[],5,FALSE) -> Maintien des acquis et réhabilitation | E157: =VLOOKUP($A157,Tableau15[],7,FALSE) -> 25 | F157: 25 | G157: 0 | H157: =VLOOKUP(Tableau5[[#This Row],[Name]],'2. T21v04_981_982'!$A$1:$M$42,12,FALSE) -> 2.5
A158: 362 | B158: =VLOOKUP($A158,Tableau15[],2,FALSE) -> SANS SOUCI EPSM | C158: 362 SANS SOUCI EPSM | D158: =VLOOKUP($A158,Tableau15[],5,FALSE) -> Maintien des acquis et réhabilitation | E158: =VLOOKUP($A158,Tableau15[],7,FALSE) -> 36 | F158: 36 | G158: 0 | H158: =VLOOKUP(Tableau5[[#This Row],[Name]],'2. T21v04_981_982'!$A$1:$M$42,12,FALSE) -> 3.6
A159: 365 | B159: =VLOOKUP($A159,Tableau15[],2,FALSE) -> MYOSOTIS EPSM | C159: 365 MYOSOTIS EPSM | D159: =VLOOKUP($A159,Tableau15[],5,FALSE) -> Maintien des acquis et réhabilitation | E159: =VLOOKUP($A159,Tableau15[],7,FALSE) -> 32 | F159: 32 | G159: 0 | H159: =VLOOKUP(Tableau5[[#This Row],[Name]],'2. T21v04_981_982'!$A$1:$M$42,12,FALSE) -> 3.2
A160: 376 | B160: =VLOOKUP($A160,Tableau15[],2,FALSE) -> SYLVABELLE EPSM | C160: 376 SYLVABELLE EPSM | D160: =VLOOKUP($A160,Tableau15[],5,FALSE) -> Réduction des risques et engagement dans le suivi | E160: =VLOOKUP($A160,Tableau15[],7,FALSE) -> 28 | F160: 28 | G160: 0 | H160: =VLOOKUP(Tableau5[[#This Row],[Name]],'2. T21v04_981_982'!$A$1:$M$42,12,FALSE) -> 4.2
A161: 388 | B161: =VLOOKUP($A161,Tableau15[],2,FALSE) -> DUC EPSM | C161: 388 DUC EPSM | D161: =VLOOKUP($A161,Tableau15[],5,FALSE) -> Maintien des acquis et réhabilitation | E161: =VLOOKUP($A161,Tableau15[],7,FALSE) -> 15 | F161: 15 | G161: 0 | H161: =VLOOKUP(Tableau5[[#This Row],[Name]],'2. T21v04_981_982'!$A$1:$M$42,12,FALSE) -> 1.5
A162: 441 | B162: =VLOOKUP($A162,Tableau15[],2,FALSE) -> AUBEPINES EPSM | C162: 441 AUBEPINES EPSM | D162: =VLOOKUP($A162,Tableau15[],5,FALSE) -> Maintien des acquis et réhabilitation | E162: =VLOOKUP($A162,Tableau15[],7,FALSE) -> 18 | F162: 18 | G162: 0 | H162: =VLOOKUP(Tableau5[[#This Row],[Name]],'2. T21v04_981_982'!$A$1:$M$42,12,FALSE) -> 1.8
A163: 476 | B163: =VLOOKUP($A163,Tableau15[],2,FALSE) -> MIDI EPSM | C163: 476 MIDI EPSM | D163: =VLOOKUP($A163,Tableau15[],5,FALSE) -> Maintien des acquis et réhabilitation | E163: =VLOOKUP($A163,Tableau15[],7,FALSE) -> 12 | F163: 12 | G163: 0 | H163: =VLOOKUP(Tableau5[[#This Row],[Name]],'2. T21v04_981_982'!$A$1:$M$42,12,FALSE) -> 1.2
A164: 478 | B164: =VLOOKUP($A164,Tableau15[],2,FALSE) -> PRAZ-SECHAUD II EPSM | C164: 478 PRAZ-SECHAUD II EPSM | D164: =VLOOKUP($A164,Tableau15[],5,FALSE) -> Maintien des acquis et réhabilitation | E164: =VLOOKUP($A164,Tableau15[],7,FALSE) -> 18 | F164: 18 | G164: 0 | H164: =VLOOKUP(Tableau5[[#This Row],[Name]],'2. T21v04_981_982'!$A$1:$M$42,12,FALSE) -> 1.8
A165: 514 | B165: =VLOOKUP($A165,Tableau15[],2,FALSE) -> TERRASSE EPSM | C165: 514 TERRASSE EPSM | D165: =VLOOKUP($A165,Tableau15[],5,FALSE) -> Maintien des acquis et réhabilitation | E165: =VLOOKUP($A165,Tableau15[],7,FALSE) -> 24 | F165: 24 | G165: 0 | H165: =VLOOKUP(Tableau5[[#This Row],[Name]],'2. T21v04_981_982'!$A$1:$M$42,12,FALSE) -> 2.4
A166: 517 | B166: =VLOOKUP($A166,Tableau15[],2,FALSE) -> SOLEIL EPSM | C166: 517 SOLEIL EPSM | D166: =VLOOKUP($A166,Tableau15[],5,FALSE) -> Maintien des acquis et réhabilitation | E166: =VLOOKUP($A166,Tableau15[],7,FALSE) -> 40 | F166: 40 | G166: 0 | H166: =VLOOKUP(Tableau5[[#This Row],[Name]],'2. T21v04_981_982'!$A$1:$M$42,12,FALSE) -> 4
A167: 521 | B167: =VLOOKUP($A167,Tableau15[],2,FALSE) -> CHANELLA EPSM | C167: 521 CHANELLA EPSM | D167: =VLOOKUP($A167,Tableau15[],5,FALSE) -> Maintien des acquis et réhabilitation | E167: =VLOOKUP($A167,Tableau15[],7,FALSE) -> 21 | F167: 21 | G167: 0 | H167: =VLOOKUP(Tableau5[[#This Row],[Name]],'2. T21v04_981_982'!$A$1:$M$42,12,FALSE) -> 2.1
A168: 522 | B168: =VLOOKUP($A168,Tableau15[],2,FALSE) -> POMMERAIE EPSM | C168: 522 POMMERAIE EPSM | D168: =VLOOKUP($A168,Tableau15[],5,FALSE) -> Maintien des acquis et réhabilitation | E168: =VLOOKUP($A168,Tableau15[],7,FALSE) -> 13 | F168: 13 | G168: 0 | H168: =VLOOKUP(Tableau5[[#This Row],[Name]],'2. T21v04_981_982'!$A$1:$M$42,12,FALSE) -> 1.3
A169: 527 | B169: =VLOOKUP($A169,Tableau15[],2,FALSE) -> BETHEL EPSM | C169: 527 BETHEL EPSM | D169: =VLOOKUP($A169,Tableau15[],5,FALSE) -> Réduction des risques et engagement dans le suivi | E169: =VLOOKUP($A169,Tableau15[],7,FALSE) -> 22 | F169: 5 | G169: 17 | H169: =VLOOKUP(Tableau5[[#This Row],[Name]],'2. T21v04_981_982'!$A$1:$M$42,12,FALSE) -> 3.3
A170: 534 | B170: =VLOOKUP($A170,Tableau15[],2,FALSE) -> SOLEIL LEVANT EPSM | C170: 534 SOLEIL LEVANT EPSM | D170: =VLOOKUP($A170,Tableau15[],5,FALSE) -> Réduction des risques et engagement dans le suivi | E170: =VLOOKUP($A170,Tableau15[],7,FALSE) -> 12 | F170: 12 | G170: 0 | H170: =VLOOKUP(Tableau5[[#This Row],[Name]],'2. T21v04_981_982'!$A$1:$M$42,12,FALSE) -> 1.8
A171: 542 | B171: =VLOOKUP($A171,Tableau15[],2,FALSE) -> POINT JOUR EPSM | C171: 542 POINT JOUR EPSM | D171: =VLOOKUP($A171,Tableau15[],5,FALSE) -> Maintien des acquis et réhabilitation | E171: =VLOOKUP($A171,Tableau15[],7,FALSE) -> 11 | F171: 11 | G171: 0 | H171: =VLOOKUP(Tableau5[[#This Row],[Name]],'2. T21v04_981_982'!$A$1:$M$42,12,FALSE) -> 1.1
A172: 544 | B172: =VLOOKUP($A172,Tableau15[],2,FALSE) -> THIELE EPSM | C172: 544 THIELE EPSM | D172: =VLOOKUP($A172,Tableau15[],5,FALSE) -> Insertion socio-professionnelle | E172: =VLOOKUP($A172,Tableau15[],7,FALSE) -> 18 | F172: 18 | G172: 0 | H172: =VLOOKUP(Tableau5[[#This Row],[Name]],'2. T21v04_981_982'!$A$1:$M$42,12,FALSE) -> 3.6
A173: 545 | B173: =VLOOKUP($A173,Tableau15[],2,FALSE) -> LYS EPSM | C173: 545 LYS EPSM | D173: =VLOOKUP($A173,Tableau15[],5,FALSE) -> Réduction des risques et engagement dans le suivi | E173: =VLOOKUP($A173,Tableau15[],7,FALSE) -> 20 | F173: 20 | G173: 0 | H173: =VLOOKUP(Tableau5[[#This Row],[Name]],'2. T21v04_981_982'!$A$1:$M$42,12,FALSE) -> 3
A174: 546 | B174: =VLOOKUP($A174,Tableau15[],2,FALSE) -> ENVOL MORGES EPSM | C174: 546 ENVOL MORGES EPSM | D174: =VLOOKUP($A174,Tableau15[],5,FALSE) -> Insertion socio-professionnelle | E174: =VLOOKUP($A174,Tableau15[],7,FALSE) -> 9 | F174: 9 | G174: 0 | H174: =VLOOKUP(Tableau5[[#This Row],[Name]],'2. T21v04_981_982'!$A$1:$M$42,12,FALSE) -> 1.8
A175: 547 | B175: =VLOOKUP($A175,Tableau15[],2,FALSE) -> ENVOL YVERDON EPSM | C175: 547 ENVOL YVERDON EPSM | D175: =VLOOKUP($A175,Tableau15[],5,FALSE) -> Insertion socio-professionnelle | E175: =VLOOKUP($A175,Tableau15[],7,FALSE) -> 9 | F175: 9 | G175: 0 | H175: =VLOOKUP(Tableau5[[#This Row],[Name]],'2. T21v04_981_982'!$A$1:$M$42,12,FALSE) -> 1.8
A176: 549 | B176: =VLOOKUP($A176,Tableau15[],2,FALSE) -> CROISEE DE JOUX EPSM | C176: 549 CROISEE DE JOUX EPSM | D176: =VLOOKUP($A176,Tableau15[],5,FALSE) -> Maintien des acquis et réhabilitation | E176: =VLOOKUP($A176,Tableau15[],7,FALSE) -> 19 | F176: 19 | G176: 0 | H176: =VLOOKUP(Tableau5[[#This Row],[Name]],'2. T21v04_981_982'!$A$1:$M$42,12,FALSE) -> 1.9
A177: 551 | B177: =VLOOKUP($A177,Tableau15[],2,FALSE) -> ROUVRAIE EPSM | C177: 551 ROUVRAIE EPSM | D177: =VLOOKUP($A177,Tableau15[],5,FALSE) -> Maintien des acquis et réhabilitation | E177: =VLOOKUP($A177,Tableau15[],7,FALSE) -> 15 | F177: 15 | G177: 0 | H177: =VLOOKUP(Tableau5[[#This Row],[Name]],'2. T21v04_981_982'!$A$1:$M$42,12,FALSE) -> 1.5
A178: 553 | B178: =VLOOKUP($A178,Tableau15[],2,FALSE) -> ROTILLON EPSM | C178: 553 ROTILLON EPSM | D178: =VLOOKUP($A178,Tableau15[],5,FALSE) -> Réduction des risques et engagement dans le suivi | E178: =VLOOKUP($A178,Tableau15[],7,FALSE) -> 21 | F178: 21 | G178: 0 | H178: =VLOOKUP(Tableau5[[#This Row],[Name]],'2. T21v04_981_982'!$A$1:$M$42,12,FALSE) -> 3.15
A179: 558 | B179: =VLOOKUP($A179,Tableau15[],2,FALSE) -> OISEAUX EPSM | C179: 558 OISEAUX EPSM | D179: =VLOOKUP($A179,Tableau15[],5,FALSE) -> Maintien des acquis et réhabilitation | E179: =VLOOKUP($A179,Tableau15[],7,FALSE) -> 12 | F179: =E179-G179 -> 12 | G179: 0 | H179: =VLOOKUP(Tableau5[[#This Row],[Name]],'2. T21v04_981_982'!$A$1:$M$42,12,FALSE) -> 1.2
A180: 562 | B180: =VLOOKUP($A180,Tableau15[],2,FALSE) -> ODMER EPSM | C180: 562 ODMER EPSM | D180: =VLOOKUP($A180,Tableau15[],5,FALSE) -> Mission spécifique | E180: =VLOOKUP($A180,Tableau15[],7,FALSE) -> 40 | F180: 40 | G180: 0 | H180: =VLOOKUP(Tableau5[[#This Row],[Name]],'2. T21v04_981_982'!$A$1:$M$42,12,FALSE) -> 5.2
A181: 566 | B181: =VLOOKUP($A181,Tableau15[],2,FALSE) -> ROCHELLE EPSM | C181: 566 ROCHELLE EPSM | D181: =VLOOKUP($A181,Tableau15[],5,FALSE) -> Maintien des acquis et réhabilitation | E181: =VLOOKUP($A181,Tableau15[],7,FALSE) -> 22 | F181: 22 | G181: 0 | H181: =VLOOKUP(Tableau5[[#This Row],[Name]],'2. T21v04_981_982'!$A$1:$M$42,12,FALSE) -> 2.2

Sheet A.Liste déroulante (hidden)
A1: No et nom | B1: Name | C1: LongName | D1: Direction adresse 1 | E1: Direction adresse 2 | F1: Direction adresse 3
A2: =B2&" "&C2 -> 217 ALEXANDRA EPSM | B2: 217 | C2: ALEXANDRA EPSM | D2: direction@cpsealexandra.ch
A3: 254 BOIS-GENTIL RUCHONNET EPSM | B3: 254 | C3: BOIS-GENTIL RUCHONNET EPSM | D3: py.remy@fbg.ch | E3: c.gillioz@fbg.ch
A4: 255 BOIS-GENTIL VALLON EPSM | B4: 255 | C4: BOIS-GENTIL VALLON EPSM | D4: py.remy@fbg.ch | E4: c.gillioz@fbg.ch
A5: 260 BORDE EPSM | B5: 260 | C5: BORDE EPSM | D5: caffaro.direction@sispsa.ch
A6: 302 TILLEULS EPSM | B6: 302 | C6: TILLEULS EPSM | D6: claude.paponnet@altage.ch | E6: laurent.wymann@altage.ch | F6: nathalie.correvon@altage.ch
A7: 303 CLOS BERCHER EPSM | B7: 303 | C7: CLOS BERCHER EPSM | D7: dimitri.mocellin@fondation-espace.com | E7: amela.ahmetovic@fondation-espace.com
A8: 313 BRU EPSM | B8: 313 | C8: BRU EPSM | D8: alan.tharin@emsbru.ch
A9: 321 COLOMBIERE EPSM | B9: 321 | C9: COLOMBIERE EPSM | D9: luis.villa@fondation-saphir.ch
A10: 324 PRE CARRE EPSM | B10: 324 | C10: PRE CARRE EPSM | D10: luis.villa@fondation-saphir.ch
A11: 343 CHAMP FLEURI EPSM | B11: 343 | C11: CHAMP FLEURI EPSM | D11: florian.rubio@champ-fleuri.ch
A12: 348 COLLONGES EPSM | B12: 348 | C12: COLLONGES EPSM | D12: direction@maison-collonges.ch
A13: 357 ORPHEE EPSM | B13: 357 | C13: ORPHEE EPSM | D13: direction@maison-collonges.ch
A14: 362 SANS SOUCI EPSM | B14: 362 | C14: SANS SOUCI EPSM | D14: claude.paponnet@altage.ch | E14: laurent.wymann@altage.ch | F14: nathalie.correvon@altage.ch
A15: 365 MYOSOTIS EPSM | B15: 365 | C15: MYOSOTIS EPSM | D15: myosotis@sefanet.ch | E15: myosotis.qualite@sefanet.ch
A16: 376 SYLVABELLE EPSM | B16: 376 | C16: SYLVABELLE EPSM | D16: kiny.mottier@altage.ch | E16: nathalie.correvon@altage.ch | F16: laurent.wymann@altage.ch
A17: 388 DUC EPSM | B17: 388 | C17: DUC EPSM | D17: christine.semadeni@epsmduc.ch
A18: 441 AUBEPINES EPSM | B18: 441 | C18: AUBEPINES EPSM | D18: caffaro.direction@sispsa.ch
A19: 476 MIDI EPSM | B19: 476 | C19: MIDI EPSM | D19: caffaro.direction@sispsa.ch
A20: 478 PRAZ-SECHAUD II EPSM | B20: 478 | C20: PRAZ-SECHAUD II EPSM | D20: claude.paponnet@altage.ch | E20: laurent.wymann@altage.ch | F20: nathalie.correvon@altage.ch
A21: 514 TERRASSE EPSM | B21: 514 | C21: TERRASSE EPSM | D21: direction@fondationlaprimerose.ch
A22: 517 SOLEIL EPSM | B22: 517 | C22: SOLEIL EPSM | D22: r.hartmann@fcm63.ch
A23: 521 CHANELLA EPSM | B23: 521 | C23: CHANELLA EPSM | D23: serge.getaz@cogestems.ch | E23: vincent.chappuis@cogestems.ch | F23: claude.schnegg@cogestems.ch
A24: 522 POMMERAIE EPSM | B24: 522 | C24: POMMERAIE EPSM | D24: serge.getaz@cogestems.ch | E24: vincent.chappuis@cogestems.ch | F24: claude.schnegg@cogestems.ch
A25: 527 BETHEL EPSM | B25: 527 | C25: BETHEL EPSM | D25: kdelabaume@maison-bethel.ch
A26: 534 SOLEIL LEVANT EPSM | B26: 534 | C26: SOLEIL LEVANT EPSM | D26: pascal.dubrit@levant.ch | E26: georges.gottignies@levant.ch
A27: 542 POINT JOUR EPSM | B27: 542 | C27: POINT JOUR EPSM | D27: direction.pdj@bluewin.ch
A28: 544 THIELE EPSM | B28: 544 | C28: THIELE EPSM | D28: p.morales@fondation-simonin.ch | E28: direction@foyerthiele.ch
A29: 545 LYS EPSM | B29: 545 | C29: LYS EPSM | D29: pascal.dubrit@levant.ch | E29: georges.gottignies@levant.ch
A30: 546 ENVOL MORGES EPSM | B30: 546 | C30: ENVOL MORGES EPSM | D30: laurence.juriens@apsip.ch | E30: envolmorges@apsip.ch
A31: 547 ENVOL YVERDON EPSM | B31: 547 | C31: ENVOL YVERDON EPSM | D31: laurence.juriens@apsip.ch | E31: envolmorges@apsip.ch
A32: 549 CROISEE DE JOUX EPSM | B32: 549 | C32: CROISEE DE JOUX EPSM | D32: direction@croiseedejoux.ch
A33: 551 ROUVRAIE EPSM | B33: 551 | C33: ROUVRAIE EPSM | D33: rouvraie@bluewin.ch
A34: 553 ROTILLON EPSM | B34: 553 | C34: ROTILLON EPSM | D34: ebovitutti@lerotillon.ch
A35: 558 OISEAUX EPSM | B35: 558 | C35: OISEAUX EPSM | D35: caffaro.direction@sispsa.ch
A36: 562 ODMER EPSM | B36: 562 | C36: ODMER EPSM | D36: r.hartmann@fcm63.ch
A37: 566 ROCHELLE EPSM | B37: 566 | C37: ROCHELLE EPSM | D37: kiny.mottier@altage.ch | E37: laurent.wymann@altage.ch | F37: nathalie.correvon@altage.ch

Sheet B.Hors périmètre (hidden)
A1: No et nom | B1: Name | C1: LongName | D1: Direction adresse 1 | E1: Direction adresse 2 | F1: Direction adresse 3
A2: =B2&" "&C2 -> 496 VERNIE | B2: 496 | C2: VERNIE | D2: direction@fondationlaprimerose.ch
A3: =B3&" "&C3 -> 552 MANCINI PPS | B3: 552 | C3: MANCINI PPS | D3: mancini&co@bluewin.ch
A4: 554 PAROLE EPSM | B4: 554 | C4: PAROLE EPSM | D4: portner@chiffredelaparole.ch
A5: 555 MAIEUTIQUE EPSM | B5: 555 | C5: MAIEUTIQUE EPSM | D5: muriel.reboh-serero@maieutique.ch
A6: 560 TRAVERSE PPS | B6: 560 | C6: TRAVERSE PPS | D6: claude.paponnet@altage.ch | E6: laurent.wymann@altage.ch | F6: nathalie.correvon@altage.ch
B12: F calcul dotation 2021
A14: Hors périmètre f calcul dotation
A15: 496 | B15: VERNIE EMS | D15: Unité Aventurine (15 lits PA) | F15: Données PLAISIR globales pour l'établissement (pas spécifiques à l'unité Aventurine PA)
A17: 552 | B17: MANCINI PPS | D17: PPS - pas de financement soins . Hors périmètre directive transitoire
A18: 560 | B18: TRAVERSE PPS | D18: PPS - pas de financement soins . Hors périmètre directive transitoire
A19: 555 | B19: MAIEUTIQUE EPSM | D19: PPS - pas de financement soins . Hors périmètre directive transitoire | F19: Facturation forfait journalier LAMal pour l'hôpital de jour.
A21: 554 | B21: PAROLE EPSM | D21: Pas de financement soins - exception - pas de feuille de calcul dotation mais reçoivent l'information sur la directive transitoire.
A23: 131 | B23: ROSE VENTS EPSM | D23: ouverture février 2021 - pas de données PLAISIR

Sheet 1. T21_v04_données gén (hidden)
A1: Name | B1: LongName | C1: Variante | D1: ColMission | E1: ColMissionPa | F1: MissionPa | G1: CalLits
A2: 131 | B2: ROSE VENTS EPSM | C2: Standard-PA | D2: Psychiatrie adulte | E2: Insertion socio-professionnelle | F2: INSERTION | G2: 15
A3: 217 | B3: ALEXANDRA EPSM | C3: Standard-PA | D3: Psychiatrie adulte | E3: Maintien des acquis et réhabilitation | F3: MAINTIEN | G3: 17
A4: 254 | B4: BOIS-GENTIL RUCHONNET EPSM | C4: Standard-PA | D4: Psychiatrie adulte | E4: Maintien des acquis et réhabilitation | F4: MAINTIEN | G4: 22
A5: 255 | B5: BOIS-GENTIL VALLON EPSM | C5: Standard-PA | D5: Psychiatrie adulte | E5: Réduction des risques et engagement dans le suivi | F5: REDUCTION | G5: 32
A6: 260 | B6: BORDE EPSM | C6: Standard-PA | D6: Psychiatrie adulte | E6: Maintien des acquis et réhabilitation | F6: MAINTIEN | G6: 25
A7: 302 | B7: TILLEULS EPSM | C7: Standard-PA | D7: Psychiatrie adulte | E7: Maintien des acquis et réhabilitation | F7: MAINTIEN | G7: 27
A8: 303 | B8: CLOS BERCHER EPSM | C8: Standard-PA | D8: Psychiatrie adulte | E8: Maintien des acquis et réhabilitation | F8: MAINTIEN | G8: 27
A9: 313 | B9: BRU EPSM | C9: Standard-PA | D9: Psychiatrie adulte | E9: Maintien des acquis et réhabilitation | F9: MAINTIEN | G9: 61
A10: 321 | B10: COLOMBIERE EPSM | C10: Standard-PA | D10: Psychiatrie adulte | E10: Maintien des acquis et réhabilitation | F10: MAINTIEN | G10: 18
A11: 324 | B11: PRE CARRE EPSM | C11: Standard-PA | D11: Psychiatrie adulte | E11: Maintien des acquis et réhabilitation | F11: MAINTIEN | G11: 18
A12: 343 | B12: CHAMP FLEURI EPSM | C12: Standard-PA | D12: Psychiatrie adulte | E12: Réduction des risques et engagement dans le suivi | F12: REDUCTION | G12: 38
A13: 348 | B13: COLLONGES EPSM | C13: Standard-PA | D13: Psychiatrie adulte | E13: Maintien des acquis et réhabilitation | F13: MAINTIEN | G13: 15
A14: 357 | B14: ORPHEE EPSM | C14: Standard-PA | D14: Psychiatrie adulte | E14: Maintien des acquis et réhabilitation | F14: MAINTIEN | G14: 25
A15: 362 | B15: SANS SOUCI EPSM | C15: Standard-PA | D15: Psychiatrie adulte | E15: Maintien des acquis et réhabilitation | F15: MAINTIEN | G15: 36
A16: 365 | B16: MYOSOTIS EPSM | C16: Standard-PA | D16: Psychiatrie adulte | E16: Maintien des acquis et réhabilitation | F16: MAINTIEN | G16: 32
A17: 376 | B17: SYLVABELLE EPSM | C17: Standard-PA | D17: Psychiatrie adulte | E17: Réduction des risques et engagement dans le suivi | F17: REDUCTION | G17: 28
A18: 388 | B18: DUC EPSM | C18: Standard-PA | D18: Psychiatrie adulte | E18: Maintien des acquis et réhabilitation | F18: MAINTIEN | G18: 15
A19: 441 | B19: AUBEPINES EPSM | C19: Standard-PA | D19: Psychiatrie adulte | E19: Maintien des acquis et réhabilitation | F19: MAINTIEN | G19: 18
A20: 476 | B20: MIDI EPSM | C20: Standard-PA | D20: Psychiatrie adulte | E20: Maintien des acquis et réhabilitation | F20: MAINTIEN | G20: 12
A21: 478 | B21: PRAZ-SECHAUD II EPSM | C21: Standard-PA | D21: Psychiatrie adulte | E21: Maintien des acquis et réhabilitation | F21: MAINTIEN | G21: 18
A22: 514 | B22: TERRASSE EPSM | C22: Standard-PA | D22: Psychiatrie adulte | E22: Maintien des acquis et réhabilitation | F22: MAINTIEN | G22: 24
A23: 517 | B23: SOLEIL EPSM | C23: Standard-PA | D23: Psychiatrie adulte | E23: Maintien des acquis et réhabilitation | F23: MAINTIEN | G23: 40
A24: 521 | B24: CHANELLA EPSM | C24: Standard-PA | D24: Psychiatrie adulte | E24: Maintien des acquis et réhabilitation | F24: MAINTIEN | G24: 21
A25: 522 | B25: POMMERAIE EPSM | C25: Standard-PA | D25: Psychiatrie adulte | E25: Maintien des acquis et réhabilitation | F25: MAINTIEN | G25: 13
A26: 527 | B26: BETHEL EPSM | C26: Standard-PA | D26: Psychiatrie adulte | E26: Réduction des risques et engagement dans le suivi | F26: REDUCTION | G26: 22
A27: 534 | B27: SOLEIL LEVANT EPSM | C27: Standard-PA | D27: Spécifique | E27: Réduction des risques et engagement dans le suivi | F27: REDUCTION | G27: 12
A28: 542 | B28: POINT JOUR EPSM | C28: Standard-PA | D28: Psychiatrie adulte | E28: Maintien des acquis et réhabilitation | F28: MAINTIEN | G28: 11
A29: 544 | B29: THIELE EPSM | C29: Standard-PA | D29: Psychiatrie adulte | E29: Insertion socio-professionnelle | F29: INSERTION | G29: 18
A30: 545 | B30: LYS EPSM | C30: Standard-PA | D30: Psychiatrie adulte | E30: Réduction des risques et engagement dans le suivi | F30: REDUCTION | G30: 20
A31: 546 | B31: ENVOL MORGES EPSM | C31: Standard-PA | D31: Psychiatrie adulte | E31: Insertion socio-professionnelle | F31: INSERTION | G31: 9
A32: 547 | B32: ENVOL YVERDON EPSM | C32: Standard-PA | D32: Psychiatrie adulte | E32: Insertion socio-professionnelle | F32: INSERTION | G32: 9
A33: 549 | B33: CROISEE DE JOUX EPSM | C33: Standard-PA | D33: Psychiatrie adulte | E33: Maintien des acquis et réhabilitation | F33: MAINTIEN | G33: 19
A34: 551 | B34: ROUVRAIE EPSM | C34: Standard-PA | D34: Psychiatrie adulte | E34: Maintien des acquis et réhabilitation | F34: MAINTIEN | G34: 15
A35: 552 | B35: MANCINI PPS | C35: Standard-PA | D35: Psychiatrie adulte | E35: Soutien dans les besoins de base | F35: BASE | G35: 38
A36: 553 | B36: ROTILLON EPSM | C36: Standard-PA | D36: Psychiatrie adulte | E36: Réduction des risques et engagement dans le suivi | F36: REDUCTION | G36: 21
A37: 554 | B37: PAROLE EPSM | C37: Standard-PA | D37: Psychiatrie adulte | E37: Insertion socio-professionnelle | F37: INSERTION | G37: 7
A38: 555 | B38: MAIEUTIQUE EPSM | C38: Standard-PA | D38: Psychiatrie adulte | E38: Insertion socio-professionnelle | F38: INSERTION | G38: 26
A39: 558 | B39: OISEAUX EPSM | C39: Standard-PA | D39: Psychiatrie adulte | E39: Maintien des acquis et réhabilitation | F39: MAINTIEN | G39: 12
A40: 560 | B40: TRAVERSE PPS | C40: Standard-PA | D40: Psychiatrie adulte | E40: Soutien dans les besoins de base | F40: MAINTIEN | G40: 12
A41: 562 | B41: ODMER EPSM | C41: Standard-PA | D41: Psychiatrie adulte | E41: Mission spécifique | F41: SPECIFIQUE | G41: 40
A42: 566 | B42: ROCHELLE EPSM | C42: Standard-PA | D42: Psychiatrie adulte | E42: Maintien des acquis et réhabilitation | F42: MAINTIEN | G42: 22

Sheet 2. T21v04_981_982 (hidden)
A1: Name | B1: LongName | C1: Variante | D1: ColMission | E1: ColMissionPa | F1: MissionPa | G1: CalLits | H1: Code | I1: PresSim2Dota | J1: Code | K1: PresSim2Dota | L1: EPT TOT 981-982 | M1: DOT TOT
A2: 131 | B2: ROSE VENTS EPSM | C2: Standard-PA | D2: Psychiatrie adulte | E2: Insertion socio-professionnelle | F2: INSERTION | G2: 15 | H2: 981 | I2: 3 | J2: 982 | K2: 0 | L2: =I2+K2 -> 3 | M2: =L2/G2 -> 0.2
A3: 217 | B3: ALEXANDRA EPSM | C3: Standard-PA | D3: Psychiatrie adulte | E3: Maintien des acquis et réhabilitation | F3: MAINTIEN | G3: 17 | H3: 981 | I3: 0.85 | J3: 982 | K3: 0.85 | L3: =I3+K3 -> 1.7 | M3: =L3/G3 -> 0.1
A4: 254 | B4: BOIS-GENTIL RUCHONNET EPSM | C4: Standard-PA | D4: Psychiatrie adulte | E4: Maintien des acquis et réhabilitation | F4: MAINTIEN | G4: 22 | H4: 981 | I4: 1.1 | J4: 982 | K4: 1.1 | L4: 2.2 | M4: 0.1
A5: 255 | B5: BOIS-GENTIL VALLON EPSM | C5: Standard-PA | D5: Psychiatrie adulte | E5: Réduction des risques et engagement dans le suivi | F5: REDUCTION | G5: 32 | H5: 981 | I5: 4.8 | J5: 982 | K5: 0 | L5: 4.8 | M5: 0.15
A6: 260 | B6: BORDE EPSM | C6: Standard-PA | D6: Psychiatrie adulte | E6: Maintien des acquis et réhabilitation | F6: MAINTIEN | G6: 25 | H6: 981 | I6: 1.25 | J6: 982 | K6: 1.25 | L6: 2.5 | M6: 0.1
A7: 302 | B7: TILLEULS EPSM | C7: Standard-PA | D7: Psychiatrie adulte | E7: Maintien des acquis et réhabilitation | F7: MAINTIEN | G7: 27 | H7: 981 | I7: 1.35 | J7: 982 | K7: 1.35 | L7: 2.7 | M7: 0.1
A8: 303 | B8: CLOS BERCHER EPSM | C8: Standard-PA | D8: Psychiatrie adulte | E8: Maintien des acquis et réhabilitation | F8: MAINTIEN | G8: 27 | H8: 981 | I8: 1.35 | J8: 982 | K8: 1.35 | L8: 2.7 | M8: 0.1
A9: 313 | B9: BRU EPSM | C9: Standard-PA | D9: Psychiatrie adulte | E9: Maintien des acquis et réhabilitation | F9: MAINTIEN | G9: 61 | H9: 981 | I9: 3.05 | J9: 982 | K9: 3.05 | L9: 6.1 | M9: 0.1
A10: 321 | B10: COLOMBIERE EPSM | C10: Standard-PA | D10: Psychiatrie adulte | E10: Maintien des acquis et réhabilitation | F10: MAINTIEN | G10: 18 | H10: 981 | I10: 0.9 | J10: 982 | K10: 0.9 | L10: 1.8 | M10: 0.1
A11: 324 | B11: PRE CARRE EPSM | C11: Standard-PA | D11: Psychiatrie adulte | E11: Maintien des acquis et réhabilitation | F11: MAINTIEN | G11: 18 | H11: 981 | I11: 0.9 | J11: 982 | K11: 0.9 | L11: 1.8 | M11: 0.1
A12: 343 | B12: CHAMP FLEURI EPSM | C12: Standard-PA | D12: Psychiatrie adulte | E12: Réduction des risques et engagement dans le suivi | F12: REDUCTION | G12: 38 | H12: 981 | I12: 5.7 | J12: 982 | K12: 0 | L12: 5.7 | M12: 0.15
A13: 348 | B13: COLLONGES EPSM | C13: Standard-PA | D13: Psychiatrie adulte | E13: Maintien des acquis et réhabilitation | F13: MAINTIEN | G13: 15 | H13: 981 | I13: 0.75 | J13: 982 | K13: 0.75 | L13: 1.5 | M13: 0.1
A14: 357 | B14: ORPHEE EPSM | C14: Standard-PA | D14: Psychiatrie adulte | E14: Maintien des acquis et réhabilitation | F14: MAINTIEN | G14: 25 | H14: 981 | I14: 1.25 | J14: 982 | K14: 1.25 | L14: 2.5 | M14: 0.1
A15: 362 | B15: SANS SOUCI EPSM | C15: Standard-PA | D15: Psychiatrie adulte | E15: Maintien des acquis et réhabilitation | F15: MAINTIEN | G15: 36 | H15: 981 | I15: 1.8 | J15: 982 | K15: 1.8 | L15: 3.6 | M15: 0.1
A16: 365 | B16: MYOSOTIS EPSM | C16: Standard-PA | D16: Psychiatrie adulte | E16: Maintien des acquis et réhabilitation | F16: MAINTIEN | G16: 32 | H16: 981 | I16: 1.6 | J16: 982 | K16: 1.6 | L16: 3.2 | M16: 0.1
A17: 376 | B17: SYLVABELLE EPSM | C17: Standard-PA | D17: Psychiatrie adulte | E17: Réduction des risques et engagement dans le suivi | F17: REDUCTION | G17: 28 | H17: 981 | I17: 4.2 | J17: 982 | K17: 0 | L17: 4.2 | M17: 0.15
A18: 388 | B18: DUC EPSM | C18: Standard-PA | D18: Psychiatrie adulte | E18: Maintien des acquis et réhabilitation | F18: MAINTIEN | G18: 15 | H18: 981 | I18: 0.75 | J18: 982 | K18: 0.75 | L18: 1.5 | M18: 0.1
A19: 441 | B19: AUBEPINES EPSM | C19: Standard-PA | D19: Psychiatrie adulte | E19: Maintien des acquis et réhabilitation | F19: MAINTIEN | G19: 18 | H19: 981 | I19: 0.9 | J19: 982 | K19: 0.9 | L19: 1.8 | M19: 0.1
A20: 476 | B20: MIDI EPSM | C20: Standard-PA | D20: Psychiatrie adulte | E20: Maintien des acquis et réhabilitation | F20: MAINTIEN | G20: 12 | H20: 981 | I20: 0.6 | J20: 982 | K20: 0.6 | L20: 1.2 | M20: 0.1
A21: 478 | B21: PRAZ-SECHAUD II EPSM | C21: Standard-PA | D21: Psychiatrie adulte | E21: Maintien des acquis et réhabilitation | F21: MAINTIEN | G21: 18 | H21: 981 | I21: 0.9 | J21: 982 | K21: 0.9 | L21: 1.8 | M21: 0.1
A22: 514 | B22: TERRASSE EPSM | C22: Standard-PA | D22: Psychiatrie adulte | E22: Maintien des acquis et réhabilitation | F22: MAINTIEN | G22: 24 | H22: 981 | I22: 1.2 | J22: 982 | K22: 1.2 | L22: 2.4 | M22: 0.1
A23: 517 | B23: SOLEIL EPSM | C23: Standard-PA | D23: Psychiatrie adulte | E23: Maintien des acquis et réhabilitation | F23: MAINTIEN | G23: 40 | H23: 981 | I23: 2 | J23: 982 | K23: 2 | L23: 4 | M23: 0.1
A24: 521 | B24: CHANELLA EPSM | C24: Standard-PA | D24: Psychiatrie adulte | E24: Maintien des acquis et réhabilitation | F24: MAINTIEN | G24: 21 | H24: 981 | I24: 1.05 | J24: 982 | K24: 1.05 | L24: 2.1 | M24: 0.1
A25: 522 | B25: POMMERAIE EPSM | C25: Standard-PA | D25: Psychiatrie adulte | E25: Maintien des acquis et réhabilitation | F25: MAINTIEN | G25: 13 | H25: 981 | I25: 0.65 | J25: 982 | K25: 0.65 | L25: 1.3 | M25: 0.1
A26: 527 | B26: BETHEL EPSM | C26: Standard-PA | D26: Psychiatrie adulte | E26: Réduction des risques et engagement dans le suivi | F26: REDUCTION | G26: 22 | H26: 981 | I26: 3.3 | J26: 982 | K26: 0 | L26: 3.3 | M26: 0.15
A27: 534 | B27: SOLEIL LEVANT EPSM | C27: Standard-PA | D27: Spécifique | E27: Réduction des risques et engagement dans le suivi | F27: REDUCTION | G27: 12 | H27: 981 | I27: 1.8 | J27: 982 | K27: 0 | L27: 1.8 | M27: 0.15
A28: 542 | B28: POINT JOUR EPSM | C28: Standard-PA | D28: Psychiatrie adulte | E28: Maintien des acquis et réhabilitation | F28: MAINTIEN | G28: 11 | H28: 981 | I28: 0.55 | J28: 982 | K28: 0.55 | L28: 1.1 | M28: 0.1
A29: 544 | B29: THIELE EPSM | C29: Standard-PA | D29: Psychiatrie adulte | E29: Insertion socio-professionnelle | F29: INSERTION | G29: 18 | H29: 981 | I29: 3.6 | J29: 982 | K29: 0 | L29: 3.6 | M29: 0.2
A30: 545 | B30: LYS EPSM | C30: Standard-PA | D30: Psychiatrie adulte | E30: Réduction des risques et engagement dans le suivi | F30: REDUCTION | G30: 20 | H30: 981 | I30: 3 | J30: 982 | K30: 0 | L30: 3 | M30: 0.15
A31: 546 | B31: ENVOL MORGES EPSM | C31: Standard-PA | D31: Psychiatrie adulte | E31: Insertion socio-professionnelle | F31: INSERTION | G31: 9 | H31: 981 | I31: 1.8 | J31: 982 | K31: 0 | L31: 1.8 | M31: 0.2
A32: 547 | B32: ENVOL YVERDON EPSM | C32: Standard-PA | D32: Psychiatrie adulte | E32: Insertion socio-professionnelle | F32: INSERTION | G32: 9 | H32: 981 | I32: 1.8 | J32: 982 | K32: 0 | L32: 1.8 | M32: 0.2
A33: 549 | B33: CROISEE DE JOUX EPSM | C33: Standard-PA | D33: Psychiatrie adulte | E33: Maintien des acquis et réhabilitation | F33: MAINTIEN | G33: 19 | H33: 981 | I33: 0.95 | J33: 982 | K33: 0.95 | L33: 1.9 | M33: 0.1
A34: 551 | B34: ROUVRAIE EPSM | C34: Standard-PA | D34: Psychiatrie adulte | E34: Maintien des acquis et réhabilitation | F34: MAINTIEN | G34: 15 | H34: 981 | I34: 0.75 | J34: 982 | K34: 0.75 | L34: 1.5 | M34: 0.1
A35: 552 | B35: MANCINI PPS | C35: Standard-PA | D35: Psychiatrie adulte | E35: Soutien dans les besoins de base | F35: BASE | G35: 38 | H35: 981 | I35: 0 | J35: 982 | K35: 0 | L35: 0 | M35: 0
A36: 553 | B36: ROTILLON EPSM | C36: Standard-PA | D36: Psychiatrie adulte | E36: Réduction des risques et engagement dans le suivi | F36: REDUCTION | G36: 21 | H36: 981 | I36: 3.15 | J36: 982 | K36: 0 | L36: 3.15 | M36: 0.15
A37: 554 | B37: PAROLE EPSM | C37: Standard-PA | D37: Psychiatrie adulte | E37: Insertion socio-professionnelle | F37: INSERTION | G37: 7 | H37: 981 | I37: 1.4 | J37: 982 | K37: 0 | L37: 1.4 | M37: 0.2
A38: 555 | B38: MAIEUTIQUE EPSM | C38: Standard-PA | D38: Psychiatrie adulte | E38: Insertion socio-professionnelle | F38: INSERTION | G38: 26 | H38: 981 | I38: 5.2 | J38: 982 | K38: 0 | L38: 5.2 | M38: 0.2
A39: 558 | B39: OISEAUX EPSM | C39: Standard-PA | D39: Psychiatrie adulte | E39: Maintien des acquis et réhabilitation | F39: MAINTIEN | G39: 12 | H39: 981 | I39: 0.6 | J39: 982 | K39: 0.6 | L39: 1.2 | M39: 0.1
A40: 560 | B40: TRAVERSE PPS | C40: Standard-PA | D40: Psychiatrie adulte | E40: Soutien dans les besoins de base | F40: MAINTIEN | G40: 12 | H40: 981 | I40: 0.6 | J40: 982 | K40: 0.6 | L40: 1.2 | M40: 0.1
A41: 562 | B41: ODMER EPSM | C41: Standard-PA | D41: Psychiatrie adulte | E41: Mission spécifique | F41: SPECIFIQUE | G41: 40 | H41: 981 | I41: 3.8 | J41: 982 | K41: 1.4 | L41: 5.2 | M41: 0.13
A42: 566 | B42: ROCHELLE EPSM | C42: Standard-PA | D42: Psychiatrie adulte | E42: Maintien des acquis et réhabilitation | F42: MAINTIEN | G42: 22 | H42: 981 | I42: 1.1 | J42: 982 | K42: 1.1 | L42: 2.2 | M42: 0.1

Sheet 3. T21vo4_déc partic (hidden)
A1: Name | B1: LongName | C1: Variante | D1: ColMission | E1: ColMissionPa | F1: MissionPa | G1: CalLits | H1: Code | I1: Type | J1: Precision | K1: MontantJour | L1: MontantAn | M1: NbEpt
A2: 131
A3: 217
A4: 254
A5: 255
A6: 260
A7: 302
A8: 303
A9: 313
A10: 321
A11: 324
A12: 343
A13: 348
A14: 357
A15: 362
A16: 365 | B16: MYOSOTIS EPSM | C16: Standard-PA | D16: Psychiatrie adulte | E16: Maintien des acquis et réhabilitation | F16: MAINTIEN | G16: 32 | H16: 1 | I16: COMP_DECISION_PARTICULIERE | J16: 0.4 EPT pairs praticiens | K16: 2.75 | L16: 31426.21 | M16: 0.4
A17: 376
A18: 388
A19: 441
A20: 476
A21: 478
A22: 514
A23: 517
A24: 521
A25: 522
A26: 527
A27: 534
A28: 542
A29: 544
A30: 545
A31: 546
A32: 547
A33: 549
A34: 551
A35: 553
A36: 558
A37: 560 | B37: TRAVERSE PPS | C37: Standard-PA | D37: Psychiatrie adulte | E37: Soutien besoins de base | F37: BASE | G37: 12 | H37: 1 | I37: COMP_DECISION_PARTICULIERE | J37: 0.5 EPT ASA | K37: 8.85 | L37: 37918 | M37: 0.5
A38: 562
A39: 566

Sheet 4. Données PLAISIR (hidden)
A1: UA Jointure | B1: Nom Jointure | C1: Mandat | D1: Lits T2021 | E1: 202010 minutes jour+nuit OPAS | F1: 202010 minutes jour | G1: 202010 minutes nuit | H1: 202005 minutes jour+nuit OPAS | I1: 202005 minutes jour | J1: 202005 minutes nuit | K1: 202010 Nbre Résidents Evalués | L1: 202005 Nbre Résidents Evalués
A2: 217 | B2: ALEXANDRA EPSM | C2: PA | D2: 17 | E2: 115.69 | F2: 103.25 | G2: 12.46 | H2: 102.34 | I2: 92.82 | J2: 10.03 | K2: 12 | L2: 12
A3: 254 | B3: BOIS-GENTIL RUCHONNET EPSM | C3: PA | D3: 22 | E3: 118.1 | F3: 109.04 | G3: 9.07 | H3: 108.22 | I3: 99.88 | J3: 8.96 | K3: 21 | L3: 22
A4: 255 | B4: BOIS-GENTIL VALLON EPSM | C4: PA | D4: 32 | E4: 120.69 | F4: 111.09 | G4: 9.72 | H4: 110.9 | I4: 102.58 | J4: 8.64 | K4: 31 | L4: 31
A5: 260 | B5: BORDE EPSM | C5: PA | D5: 25 | E5: 188.07 | F5: 177.97 | G5: 11.32 | H5: 150.75 | I5: 142.17 | J5: 9.6 | K5: 25 | L5: 25
A6: 302 | B6: TILLEULS EPSM | C6: PA | D6: 27 | E6: 202.38 | F6: 180 | G6: 26.02 | H6: 217.93 | I6: 194.73 | J6: 27.79 | K6: 25 | L6: 25
A7: 303 | B7: CLOS BERCHER EPSM | C7: PA | D7: 27 | E7: 118.7 | F7: 106.7 | G7: 12.62 | H7: 114.8 | I7: 104.12 | J7: 12.05 | K7: 22 | L7: 22
A8: 313 | B8: BRU EPSM | C8: PA | D8: 61 | E8: 146.41 | F8: 136.15 | G8: 11.47 | H8: 130.06 | I8: 120.63 | J8: 11.15 | K8: 58 | L8: 58
A9: 321 | B9: COLOMBIERE EPSM | C9: PA | D9: 18 | E9: 113.96 | F9: 106.49 | G9: 9.78 | H9: 106.8 | I9: 100.02 | J9: 8.7 | K9: 18 | L9: 18
A10: 324 | B10: PRE CARRE EPSM | C10: PA | D10: 18 | E10: 112.9 | F10: 105.25 | G10: 12.27 | H10: 104.69 | I10: 97.42 | J10: 11.09 | K10: 19 | L10: 18
A11: 343 | B11: CHAMP FLEURI EPSM | C11: PA | D11: 38 | E11: 154.77 | F11: 143.58 | G11: 12.23 | H11: 143.73 | I11: 132.6 | J11: 12.21 | K11: 37 | L11: 38
A12: 348 | B12: COLLONGES EPSM | C12: PA | D12: 15 | E12: 97.24 | F12: 92.21 | G12: 6.4 | H12: 93.31 | I12: 88.04 | J12: 6.55 | K12: 14 | L12: 14
A13: 357 | B13: ORPHEE EPSM | C13: PA | D13: 25 | E13: 92.53 | F13: 87.68 | G13: 6.03 | H13: 97.87 | I13: 92.35 | J13: 6.76 | K13: 23 | L13: 25
A14: 362 | B14: SANS SOUCI EPSM | C14: PA | D14: 36 | E14: 137.96 | F14: 122.79 | G14: 15.26 | H14: 134.76 | I14: 119.8 | J14: 15.86 | K14: 32 | L14: 32
A15: 365 | B15: MYOSOTIS EPSM | C15: PA | D15: 32 | E15: 123.08 | F15: 110.9 | G15: 12.26 | H15: 119.04 | I15: 107.99 | J15: 11.38 | K15: 28 | L15: 30
A16: 376 | B16: SYLVABELLE EPSM | C16: PA | D16: 28 | E16: 132.85 | F16: 123.36 | G16: 9.62 | H16: 126.92 | I16: 117.09 | J16: 9.94 | K16: 16 | L16: 18
A17: 388 | B17: DUC EPSM | C17: PA | D17: 15 | E17: 134.17 | F17: 122.2 | G17: 13.08 | H17: 126.88 | I17: 116.12 | J17: 13.53 | K17: 16 | L17: 19
A18: 441 | B18: AUBEPINES EPSM | C18: PA | D18: 18 | E18: 161.79 | F18: 152.25 | G18: 10.79 | H18: 153.03 | I18: 145.03 | J18: 9.34 | K18: 18 | L18: 18
A19: 476 | B19: MIDI EPSM | C19: PA | D19: 12 | E19: 153.87 | F19: 148.85 | G19: 7.75 | H19: 155.72 | I19: 150.42 | J19: 8.32 | K19: 12 | L19: 12
A20: 478 | B20: PRAZ SECHAUD II EPSM | C20: PA | D20: 18 | E20: 198.34 | F20: 175.04 | G20: 25.55 | H20: 193.34 | I20: 173.17 | J20: 21.78 | K20: 18 | L20: 17
A21: 514 | B21: TERRASSE EPSM | C21: PA | D21: 24 | E21: 135 | F21: 122.59 | G21: 13.5 | H21: 131.67 | I21: 119.72 | J21: 13.23 | K21: 23 | L21: 25
A22: 517 | B22: SOLEIL EPSM | C22: PA | D22: 40 | E22: 114.25 | F22: 100.61 | G22: 14.68 | H22: 112.22 | I22: 99.65 | J22: 13.85 | K22: 42 | L22: 39
A23: 521 | B23: CHANELLA EPSM | C23: PA | D23: 21 | E23: 119.32 | F23: 108.49 | G23: 11.27 | H23: 110.42 | I23: 101.91 | J23: 9.23 | K23: 22 | L23: 19
A24: 522 | B24: POMMERAIE EPSM | C24: PA | D24: 13 | E24: 123.74 | F24: 112.94 | G24: 10.91 | H24: 107.33 | I24: 98.32 | J24: 9.54 | K24: 13 | L24: 16
A25: 527 | B25: BETHEL EPSM | C25: PA | D25: 22 | E25: 93.74 | F25: 85.08 | G25: 8.66 | H25: 90.07 | I25: 83.51 | J25: 7.07 | K25: 5 | L25: 3
A26: 534 | B26: SOLEIL LEVANT EPSM | C26: PA | D26: 12 | E26: 171.94 | F26: 153.81 | G26: 20.19 | H26: 164.76 | I26: 148.13 | J26: 18.58 | K26: 12 | L26: 11
A27: 542 | B27: POINT DU JOUR EPSM | C27: PA | D27: 11 | E27: 114.92 | F27: 101.35 | G27: 13.57 | H27: 108.46 | I27: 96.29 | J27: 12.42 | K27: 11 | L27: 11
A28: 544 | B28: THIELE EPSM | C28: PA | D28: 18 | E28: 103 | F28: 98.11 | G28: 4.88 | H28: 96.9 | I28: 91.24 | J28: 5.66 | K28: 18 | L28: 19
A29: 545 | B29: LYS EPSM | C29: PA | D29: 20 | E29: 112.29 | F29: 104.09 | G29: 8.21 | H29: 112.62 | I29: 104.39 | J29: 8.23 | K29: 20 | L29: 16
A30: 546 | B30: ENVOL MORGES EPSM | C30: PA | D30: 9 | E30: 140.79 | F30: 130.87 | G30: 9.92 | H30: 133.94 | I30: 124.77 | J30: 9.17 | K30: 9 | L30: 9
A31: 547 | B31: ENVOL YVERDON EPSM | C31: PA | D31: 9 | E31: 140.57 | F31: 134.01 | G31: 6.56 | H31: 114.88 | I31: 107.48 | J31: 7.41 | K31: 9 | L31: 8
A32: 549 | B32: CROISEE DE JOUX EPSM | C32: PA | D32: 19 | E32: 93.69 | F32: 91.97 | G32: 1.72 | H32: 83.68 | I32: 82.4 | J32: 1.59 | K32: 17 | L32: 14
A33: 551 | B33: ROUVRAIE EPSM | C33: PA | D33: 15 | E33: 90.65 | F33: 84.39 | G33: 6.35 | H33: 90.13 | I33: 83.69 | J33: 6.44 | K33: 16 | L33: 15
A34: 553 | B34: ROTILLON EPSM | C34: PA | D34: 21 | E34: 139.9 | F34: 131.11 | G34: 10.92 | H34: 123.44 | I34: 114.03 | J34: 9.41 | K34: 21 | L34: 21
A35: 558 | B35: OISEAUX EPSM | C35: PA | D35: 12 | E35: 154.21 | F35: 145.75 | G35: 9.83 | H35: 138.17 | I35: 130.74 | J35: 8.93 | K35: 12 | L35: 12
A36: 562 | B36: ODMER EPSM | C36: PA | D36: 40 | E36: 90.037 | F36: 82.474 | G36: 10.821 | H36: 87.636 | I36: 80.572 | J36: 9.503 | K36: 38 | L36: 36
A37: 566 | B37: ROCHELLE EPSM | C37: PA | D37: 22 | E37: 127.88 | F37: 116.04 | G37: 11.88 | H37: 120.49 | I37: 108.56 | J37: 13.97 | K37: 20 | L37: 22
A39: ODMER : données pondérées, voir base Plaisir

Sheet 5. Qualif _Cibles transitoires (hidden)
B3: 5.2 EPSM - Cibles transitoires : degrés de qualification par mission et par catégories de personnel 31 - 32
B5: Missions | C5: A. Maintien des acquis et réhabilitation | E5: B. Réduction des risques et engagement dans le suivi & C. Insertion socio-professionnelle | H5: 562 ODMER Socio-éducatif | I5: =(28*0.1)+(12*0.2) -> 5.2
B6: Cibles transitoires - Degrés de qualification - Long séjour et court séjour conventionné | C6: 31 - Personnel de soins (hors veilles hors autres*) | D6: 32 - Personnel socio-éducatif (hors autres**) | E6: 31 - Personnel de soins (hors veilles hors autres*) | F6: 32 - Personnel socio-éducatif (hors autres**) | H6: 28 lits Maintien | I6: 12 lits Insertion | J6: Total | K6: % mixte
B7: Niveau d'expertise (HES/ES) | C7: Min 40% | D7: Min 50% | E7: Min 40% | F7: 1 | H7: =28/40*$I$5*0.5 -> 1.82 | I7: =12/40*$I$5*1 -> 1.56 | J7: =H7+I7 -> 3.38 | K7: =J7/$J$10 -> 0.65 | L7: Min | N7: =M7&" "&L7&" "&K7*100&"%" -> Min 65%
B8: Niveau assistance (CFC) | C8: Max 40% | D8: Max 50% | E8: Max 40% | F8: 0 | H8: =28/40*$I$5*0.5 -> 1.82 | I8: =12/40*$I$5*0 -> 0 | J8: =H8+I8 -> 1.82 | K8: =J8/$J$10 -> 0.35 | L8: Max | N8: =M8&" "&L8&" "&K8*100&"%" -> Max 35%
B9: Niveau soutien (auxiliaire) | C9: Max 20% | D9: 0 | E9: Max 20% | F9: 0 | H9: 0 | I9: 0 | J9: 0 | K9: =J9/$J$10 -> 0 | N9: =M9&" "&L9&" "&K9*100&"%" -> 0%
B10: Total hors veilles hors autres | C10: 1 | D10: 1 | E10: 1 | F10: 1 | H10: =SUM(H7:H9) -> 3.64 | I10: =SUM(I7:I9) -> 1.56 | J10: 5.2 | K10: 1
B11: * Personnel de soins (31) sans veilleurs (31550) et sans autres (stagiaires, élèves, apprentis) (319XX).
B12: ** Personnel socio-éducatif (32) sans autres (stagiaires, élèves, apprentis) (329XX).

Sheet 6. R19v01 DOT VAL (hidden)
A1: Name | B1: LongName | C1: Variante | D1: 31-32 EXPERT | E1: 31-32 ASSIST | F1: 31-32 SOUTIEN hors veilleurs | G1: 31-32 NREF (31000- 32000) | H1: 31-32 FP | I1: Code | J1: Ept | K1: Code | L1: Ept | M1: Code | N1: Ept | O1: Code veilleurs 31550 | P1: Ept | Q1: Code | R1: Ept | S1: Code (319xx) | T1: Ept | U1: Code | V1: Ept | W1: Code | X1: Ept | Y1: Code | Z1: Ept | AA1: Code | AB1: Ept | AC1: Code (329xx) | AD1: Ept | AE1: Code | AF1: Ept | AG1: Contrôle 31 | AH1: Code | AI1: Ept | AJ1: Contrôle 32
A2: 217 | B2: ALEXANDRA EPSM | C2: MonoSites | D2: =J2+V2 -> 3.03 | E2: =L2+X2 -> 1.39 | F2: =N2-P2+Z2 -> 1.57 | G2: =R2+AB2 -> 0 | H2: =T2+AD2 -> 1.36 | I2: 31EXPERT | J2: 2.45 | K2: 31ASSIST | L2: 0 | M2: 31SOUTIEN | N2: 2.03 | O2: 31550 | P2: 2.03 | Q2: 31NREF | R2: 0 | S2: 31FP | T2: 0.36 | U2: 32EXPERT | V2: 0.58 | W2: 32ASSIST | X2: 1.39 | Y2: 32SOUTIEN | Z2: 1.57 | AA2: 32NREF | AB2: 0 | AC2: 32FP | AD2: 1 | AE2: 31 | AF2: 4.85 | AG2: =AF2-J2-L2-N2-R2-T2 -> 0.01 | AH2: 32 | AI2: 4.54 | AJ2: =AI2-V2-X2-Z2-AB2-AD2 -> 0
A3: 254 | B3: BOIS-GENTIL RUCHONNET EPSM | C3: MonoSites | D3: 4.92 | E3: 0.38 | F3: 3.42 | G3: 0 | H3: 0.41 | I3: 31EXPERT | J3: 2.72 | K3: 31ASSIST | L3: 0 | M3: 31SOUTIEN | N3: 2.43 | O3: 31550 | P3: 2.43 | Q3: 31NREF | R3: 0 | S3: 31FP | T3: 0.41 | U3: 32EXPERT | V3: 2.2 | W3: 32ASSIST | X3: 0.38 | Y3: 32SOUTIEN | Z3: 3.42 | AA3: 32NREF | AB3: 0 | AC3: 32FP | AD3: 0 | AE3: 31 | AF3: 5.58 | AG3: 0.02 | AH3: 32 | AI3: 6.01 | AJ3: 0.01
A4: 255 | B4: BOIS-GENTIL VALLON EPSM | C4: MonoSites | D4: 4.63 | E4: 4.6 | F4: 0.83 | G4: 0 | H4: 0 | I4: 31EXPERT | J4: 3.44 | K4: 31ASSIST | L4: 0 | M4: 31SOUTIEN | N4: 5.32 | O4: 31550 | P4: 5.32 | Q4: 31NREF | R4: 0 | S4: 31FP | T4: 0 | U4: 32EXPERT | V4: 1.19 | W4: 32ASSIST | X4: 4.6 | Y4: 32SOUTIEN | Z4: 0.83 | AA4: 32NREF | AB4: 0 | AC4: 32FP | AD4: 0 | AE4: 31 | AF4: 8.77 | AG4: 0.01 | AH4: 32 | AI4: 6.63 | AJ4: 0.01
A5: 260 | B5: BORDE EPSM | C5: SitesMulti | D5: 8.87 | E5: 3.29 | F5: 0 | G5: 0 | H5: 2.63 | I5: 31EXPERT | J5: 7.06 | K5: 31ASSIST | L5: 1.41 | M5: 31SOUTIEN | N5: 1.12 | O5: 31550 | P5: 1.12 | Q5: 31NREF | R5: 0 | S5: 31FP | T5: 1.41 | U5: 32EXPERT | V5: 1.81 | W5: 32ASSIST | X5: 1.88 | Y5: 32SOUTIEN | Z5: 0 | AA5: 32NREF | AB5: 0 | AC5: 32FP | AD5: 1.22 | AE5: 31 | AF5: 11.01 | AG5: 0.01 | AH5: 32 | AI5: 4.93 | AJ5: 0.02
A6: 302 | B6: TILLEULS EPSM | C6: SitesMulti | D6: 6.27 | E6: 3.35 | F6: 8.9 | G6: 0 | H6: 0.58 | I6: 31EXPERT | J6: 5.27 | K6: 31ASSIST | L6: 2.83 | M6: 31SOUTIEN | N6: 11.81 | O6: 31550 | P6: 4.22 | Q6: 31NREF | R6: 0 | S6: 31FP | T6: 0 | U6: 32EXPERT | V6: 1 | W6: 32ASSIST | X6: 0.52 | Y6: 32SOUTIEN | Z6: 1.31 | AA6: 32NREF | AB6: 0 | AC6: 32FP | AD6: 0.58 | AE6: 31 | AF6: 19.92 | AG6: 0.01 | AH6: 32 | AI6: 3.42 | AJ6: 0.01
A7: 303 | B7: CLOS BERCHER EPSM | C7: MonoSites | D7: 4.23 | E7: 1.95 | F7: 1.4 | G7: 0 | H7: 0 | I7: 31EXPERT | J7: 2.59 | K7: 31ASSIST | L7: 0.5 | M7: 31SOUTIEN | N7: 2.14 | O7: 31550 | P7: 0.74 | Q7: 31NREF | R7: 0 | S7: 31FP | T7: 0 | U7: 32EXPERT | V7: 1.64 | W7: 32ASSIST | X7: 1.45 | Y7: 32SOUTIEN | Z7: 0 | AA7: 32NREF | AB7: 0 | AC7: 32FP | AD7: 0 | AE7: 31 | AF7: 5.23 | AG7: 4.440892099e-16 | AH7: 32 | AI7: 3.09 | AJ7: 0
A8: 313 | B8: BRU EPSM | C8: SitesMulti | D8: 13.99 | E8: 9.32 | F8: 7.76 | G8: 0 | H8: 2.13 | I8: 31EXPERT | J8: 10.64 | K8: 31ASSIST | L8: 5.02 | M8: 31SOUTIEN | N8: 11.46 | O8: 31550 | P8: 4.21 | Q8: 31NREF | R8: 0 | S8: 31FP | T8: 0.29 | U8: 32EXPERT | V8: 3.35 | W8: 32ASSIST | X8: 4.3 | Y8: 32SOUTIEN | Z8: 0.51 | AA8: 32NREF | AB8: 0 | AC8: 32FP | AD8: 1.84 | AE8: 31 | AF8: 27.42 | AG8: 0.01 | AH8: 32 | AI8: 10.01 | AJ8: 0.01
A9: 321 | B9: COLOMBIERE EPSM | C9: SitesMulti | D9: 3.73 | E9: 1.15 | F9: 4.91 | G9: 0.06 | H9: 0.41 | I9: 31EXPERT | J9: 1.91 | K9: 31ASSIST | L9: 1.13 | M9: 31SOUTIEN | N9: 4.29 | O9: 31550 | P9: 0 | Q9: 31NREF | R9: 0.06 | S9: 31FP | T9: 0 | U9: 32EXPERT | V9: 1.82 | W9: 32ASSIST | X9: 0.02 | Y9: 32SOUTIEN | Z9: 0.62 | AA9: 32NREF | AB9: 0 | AC9: 32FP | AD9: 0.41 | AE9: 31 | AF9: 7.4 | AG9: 0.01 | AH9: 32 | AI9: 2.89 | AJ9: 0.02
A10: 324 | B10: PRE CARRE EPSM | C10: SitesMulti | D10: 4.35 | E10: 0.82 | F10: 3.98 | G10: 0.06 | H10: 1.07 | I10: 31EXPERT | J10: 3.5 | K10: 31ASSIST | L10: 0.73 | M10: 31SOUTIEN | N10: 3.92 | O10: 31550 | P10: 0 | Q10: 31NREF | R10: 0.06 | S10: 31FP | T10: 0.57 | U10: 32EXPERT | V10: 0.85 | W10: 32ASSIST | X10: 0.09 | Y10: 32SOUTIEN | Z10: 0.06 | AA10: 32NREF | AB10: 0 | AC10: 32FP | AD10: 0.5 | AE10: 31 | AF10: 8.8 | AG10: 0.02 | AH10: 32 | AI10: 1.51 | AJ10: 0.01
A11: 343 | B11: CHAMP FLEURI EPSM | C11: MonoSites | D11: 13.69 | E11: 4.96 | F11: 2.23 | G11: 0.5 | H11: 0.48 | I11: 31EXPERT | J11: 8.09 | K11: 31ASSIST | L11: 2.21 | M11: 31SOUTIEN | N11: 3.94 | O11: 31550 | P11: 2.13 | Q11: 31NREF | R11: 0.5 | S11: 31FP | T11: 0 | U11: 32EXPERT | V11: 5.6 | W11: 32ASSIST | X11: 2.75 | Y11: 32SOUTIEN | Z11: 0.42 | AA11: 32NREF | AB11: 0 | AC11: 32FP | AD11: 0.48 | AE11: 31 | AF11: 14.76 | AG11: 0.02 | AH11: 32 | AI11: 9.27 | AJ11: 0.02
A12: 348 | B12: COLLONGES EPSM | C12: SitesMulti | D12: 5.2 | E12: 0 | F12: 0.75 | G12: 0 | H12: 1.08 | I12: 31EXPERT | J12: 3.2 | K12: 31ASSIST | L12: 0 | M12: 31SOUTIEN | N12: 2.71 | O12: 31550 | P12: 1.96 | Q12: 31NREF | R12: 0 | S12: 31FP | T12: 0 | U12: 32EXPERT | V12: 2 | W12: 32ASSIST | X12: 0 | Y12: 32SOUTIEN | Z12: 0 | AA12: 32NREF | AB12: 0 | AC12: 32FP | AD12: 1.08 | AE12: 31 | AF12: 5.91 | AG12: 0 | AH12: 32 | AI12: 3.08 | AJ12: 0
A13: 357 | B13: ORPHEE EPSM | C13: SitesMulti | D13: 5.01 | E13: 3.26 | F13: 1.5 | G13: 0 | H13: 1.33 | I13: 31EXPERT | J13: 3.99 | K13: 31ASSIST | L13: 2 | M13: 31SOUTIEN | N13: 2.61 | O13: 31550 | P13: 2.11 | Q13: 31NREF | R13: 0 | S13: 31FP | T13: 0 | U13: 32EXPERT | V13: 1.02 | W13: 32ASSIST | X13: 1.26 | Y13: 32SOUTIEN | Z13: 1 | AA13: 32NREF | AB13: 0 | AC13: 32FP | AD13: 1.33 | AE13: 31 | AF13: 8.6 | AG13: -4.440892099e-16 | AH13: 32 | AI13: 4.62 | AJ13: 0.01
A14: 362 | B14: SANS SOUCI EPSM | C14: SitesMulti | D14: 6.58 | E14: 5.05 | F14: 5.96 | G14: 0 | H14: 1.58 | I14: 31EXPERT | J14: 5.58 | K14: 31ASSIST | L14: 2.1 | M14: 31SOUTIEN | N14: 8.02 | O14: 31550 | P14: 2.06 | Q14: 31NREF | R14: 0 | S14: 31FP | T14: 0.58 | U14: 32EXPERT | V14: 1 | W14: 32ASSIST | X14: 2.95 | Y14: 32SOUTIEN | Z14: 0 | AA14: 32NREF | AB14: 0 | AC14: 32FP | AD14: 1 | AE14: 31 | AF14: 16.3 | AG14: 0.02 | AH14: 32 | AI14: 4.95 | AJ14: 0
A15: 365 | B15: MYOSOTIS EPSM | C15: MonoSites | D15: 7.6 | E15: 2.44 | F15: 5.3 | G15: 0 | H15: 0.53 | I15: 31EXPERT | J15: 6.65 | K15: 31ASSIST | L15: 0 | M15: 31SOUTIEN | N15: 7.46 | O15: 31550 | P15: 2.47 | Q15: 31NREF | R15: 0 | S15: 31FP | T15: 0 | U15: 32EXPERT | V15: 0.95 | W15: 32ASSIST | X15: 2.44 | Y15: 32SOUTIEN | Z15: 0.31 | AA15: 32NREF | AB15: 0 | AC15: 32FP | AD15: 0.53 | AE15: 31 | AF15: 14.11 | AG15: -8.881784197e-16 | AH15: 32 | AI15: 4.24 | AJ15: 0.01
A16: 376 | B16: SYLVABELLE EPSM | C16: SitesMulti | D16: 6.93 | E16: 3.15 | F16: 3.86 | G16: 0 | H16: 0 | I16: 31EXPERT | J16: 5.21 | K16: 31ASSIST | L16: 0 | M16: 31SOUTIEN | N16: 8.22 | O16: 31550 | P16: 4.36 | Q16: 31NREF | R16: 0 | S16: 31FP | T16: 0 | U16: 32EXPERT | V16: 1.72 | W16: 32ASSIST | X16: 3.15 | Y16: 32SOUTIEN | Z16: 0 | AA16: 32NREF | AB16: 0 | AC16: 32FP | AD16: 0 | AE16: 31 | AF16: 13.44 | AG16: 0.01 | AH16: 32 | AI16: 4.87 | AJ16: 4.440892099e-16
A17: 388 | B17: DUC EPSM | C17: MonoSites | D17: 3.47 | E17: 3.41 | F17: 0 | G17: 0 | H17: 1.27 | I17: 31EXPERT | J17: 2.51 | K17: 31ASSIST | L17: 0.97 | M17: 31SOUTIEN | N17: 2.4 | O17: 31550 | P17: 2.4 | Q17: 31NREF | R17: 0 | S17: 31FP | T17: 1.2 | U17: 32EXPERT | V17: 0.96 | W17: 32ASSIST | X17: 2.44 | Y17: 32SOUTIEN | Z17: 0 | AA17: 32NREF | AB17: 0 | AC17: 32FP | AD17: 0.07 | AE17: 31 | AF17: 7.08 | AG17: 0 | AH17: 32 | AI17: 3.48 | AJ17: 0.01
A18: 441 | B18: AUBEPINES EPSM | C18: SitesMulti | D18: 5.48 | E18: 1.82 | F18: 0.4 | G18: 0 | H18: 2.23 | I18: 31EXPERT | J18: 4.66 | K18: 31ASSIST | L18: 0.15 | M18: 31SOUTIEN | N18: 2.16 | O18: 31550 | P18: 2.16 | Q18: 31NREF | R18: 0 | S18: 31FP | T18: 1.65 | U18: 32EXPERT | V18: 0.82 | W18: 32ASSIST | X18: 1.67 | Y18: 32SOUTIEN | Z18: 0.4 | AA18: 32NREF | AB18: 0 | AC18: 32FP | AD18: 0.58 | AE18: 31 | AF18: 8.63 | AG18: 0.01 | AH18: 32 | AI18: 3.48 | AJ18: 0.01
A19: 476 | B19: MIDI EPSM | C19: SitesMulti | D19: 5.17 | E19: 1.44 | F19: 0.35 | G19: 0 | H19: 2.31 | I19: 31EXPERT | J19: 3.77 | K19: 31ASSIST | L19: 0 | M19: 31SOUTIEN | N19: 1.12 | O19: 31550 | P19: 1.12 | Q19: 31NREF | R19: 0 | S19: 31FP | T19: 0.95 | U19: 32EXPERT | V19: 1.4 | W19: 32ASSIST | X19: 1.44 | Y19: 32SOUTIEN | Z19: 0.35 | AA19: 32NREF | AB19: 0 | AC19: 32FP | AD19: 1.36 | AE19: 31 | AF19: 5.85 | AG19: 0.01 | AH19: 32 | AI19: 4.56 | AJ19: 0.01
A20: 478 | B20: PRAZ SECHAUD EPSM | C20: SitesMulti | D20: 5.71 | E20: 1 | F20: 5.48 | G20: 0 | H20: 0.66 | I20: 31EXPERT | J20: 5.21 | K20: 31ASSIST | L20: 0 | M20: 31SOUTIEN | N20: 11.09 | O20: 31550 | P20: 5.61 | Q20: 31NREF | R20: 0 | S20: 31FP | T20: 0.66 | U20: 32EXPERT | V20: 0.5 | W20: 32ASSIST | X20: 1 | Y20: 32SOUTIEN | Z20: 0 | AA20: 32NREF | AB20: 0 | AC20: 32FP | AD20: 0 | AE20: 31 | AF20: 16.98 | AG20: 0.02 | AH20: 32 | AI20: 1.5 | AJ20: 0
A21: 514 | B21: TERRASSE EPSM | C21: SitesMulti | D21: 6.9 | E21: 3.67 | F21: 3.72 | G21: 0.4 | H21: 0.25 | I21: 31EXPERT | J21: 6.23 | K21: 31ASSIST | L21: 1.91 | M21: 31SOUTIEN | N21: 6.3 | O21: 31550 | P21: 2.58 | Q21: 31NREF | R21: 0 | S21: 31FP | T21: 0 | U21: 32EXPERT | V21: 0.67 | W21: 32ASSIST | X21: 1.76 | Y21: 32SOUTIEN | Z21: 0 | AA21: 32NREF | AB21: 0.4 | AC21: 32FP | AD21: 0.25 | AE21: 31 | AF21: 14.44 | AG21: -8.881784197e-16 | AH21: 32 | AI21: 3.09 | AJ21: 0.01
A22: 517 | B22: SOLEIL EPSM | C22: SitesMulti | D22: 10.71 | E22: 4.19 | F22: 6.05 | G22: 0 | H22: 1 | I22: 31EXPERT | J22: 7.86 | K22: 31ASSIST | L22: 1.3 | M22: 31SOUTIEN | N22: 5.29 | O22: 31550 | P22: 0 | Q22: 31NREF | R22: 0 | S22: 31FP | T22: 0 | U22: 32EXPERT | V22: 2.85 | W22: 32ASSIST | X22: 2.89 | Y22: 32SOUTIEN | Z22: 0.76 | AA22: 32NREF | AB22: 0 | AC22: 32FP | AD22: 1 | AE22: 31 | AF22: 14.46 | AG22: 0.01 | AH22: 32 | AI22: 7.51 | AJ22: 0.01
A23: 521 | B23: CHANELLA EPSM | C23: SitesMulti | D23: 5.17 | E23: 2.31 | F23: 0.77 | G23: 0 | H23: 0.41 | I23: 31EXPERT | J23: 3.62 | K23: 31ASSIST | L23: 0 | M23: 31SOUTIEN | N23: 3.37 | O23: 31550 | P23: 2.6 | Q23: 31NREF | R23: 0 | S23: 31FP | T23: 0 | U23: 32EXPERT | V23: 1.55 | W23: 32ASSIST | X23: 2.31 | Y23: 32SOUTIEN | Z23: 0 | AA23: 32NREF | AB23: 0 | AC23: 32FP | AD23: 0.41 | AE23: 31 | AF23: 7 | AG23: 0.01 | AH23: 32 | AI23: 4.28 | AJ23: 0.01
A24: 522 | B24: POMMERAIE EPSM | C24: SitesMulti | D24: 2.93 | E24: 1.3 | F24: 1 | G24: 0 | H24: 1.05 | I24: 31EXPERT | J24: 1.77 | K24: 31ASSIST | L24: 1.3 | M24: 31SOUTIEN | N24: 2.71 | O24: 31550 | P24: 2.71 | Q24: 31NREF | R24: 0 | S24: 31FP | T24: 0 | U24: 32EXPERT | V24: 1.16 | W24: 32ASSIST | X24: 0 | Y24: 32SOUTIEN | Z24: 1 | AA24: 32NREF | AB24: 0 | AC24: 32FP | AD24: 1.05 | AE24: 31 | AF24: 5.78 | AG24: 0 | AH24: 32 | AI24: 3.22 | AJ24: 0.01
A25: 527 | B25: BETHEL EPSM | C25: MonoSites | D25: 9.35 | E25: 3.21 | F25: 1.63 | G25: 0.21 | H25: 2.2 | I25: 31EXPERT | J25: 8.25 | K25: 31ASSIST | L25: 2.21 | M25: 31SOUTIEN | N25: 2.46 | O25: 31550 | P25: 0.83 | Q25: 31NREF | R25: 0 | S25: 31FP | T25: 0 | U25: 32EXPERT | V25: 1.1 | W25: 32ASSIST | X25: 1 | Y25: 32SOUTIEN | Z25: 0 | AA25: 32NREF | AB25: 0.21 | AC25: 32FP | AD25: 2.2 | AE25: 31 | AF25: 12.92 | AG25: 0 | AH25: 32 | AI25: 4.52 | AJ25: 0.01
A26: 534 | B26: SOLEIL LEVANT EPSM | C26: MonoSites | D26: 8.21 | E26: 2.44 | F26: 0 | G26: 0.34 | H26: 0.4 | I26: 31EXPERT | J26: 8.01 | K26: 31ASSIST | L26: 1.64 | M26: 31SOUTIEN | N26: 0.8 | O26: 31550 | P26: 0.8 | Q26: 31NREF | R26: 0.08 | S26: 31FP | T26: 0.4 | U26: 32EXPERT | V26: 0.2 | W26: 32ASSIST | X26: 0.8 | Y26: 32SOUTIEN | Z26: 0 | AA26: 32NREF | AB26: 0.26 | AC26: 32FP | AD26: 0 | AE26: 31 | AF26: 10.94 | AG26: 0.01 | AH26: 32 | AI26: 1.26 | AJ26: 0
A27: 542 | B27: POINT JOUR EPSM | C27: MonoSites | D27: 4.6 | E27: 0.86 | F27: 0 | G27: 0 | H27: 0 | I27: 31EXPERT | J27: 3.02 | K27: 31ASSIST | L27: 0 | M27: 31SOUTIEN | N27: 0.99 | O27: 31550 | P27: 0.99 | Q27: 31NREF | R27: 0 | S27: 31FP | T27: 0 | U27: 32EXPERT | V27: 1.58 | W27: 32ASSIST | X27: 0.86 | Y27: 32SOUTIEN | Z27: 0 | AA27: 32NREF | AB27: 0 | AC27: 32FP | AD27: 0 | AE27: 31 | AF27: 4.01 | AG27: -2.220446049e-16 | AH27: 32 | AI27: 2.44 | AJ27: -1.110223025e-16
A28: 544 | B28: THIELE EPSM | C28: MonoSites | D28: 4.45 | E28: 0 | F28: 1.2 | G28: 2.36 | H28: 0 | I28: 31EXPERT | J28: 1.4 | K28: 31ASSIST | L28: 0 | M28: 31SOUTIEN | N28: 0 | O28: 31550 | P28: 0 | Q28: 31NREF | R28: 2.36 | S28: 31FP | T28: 0 | U28: 32EXPERT | V28: 3.05 | W28: 32ASSIST | X28: 0 | Y28: 32SOUTIEN | Z28: 1.2 | AA28: 32NREF | AB28: 0 | AC28: 32FP | AD28: 0 | AE28: 31 | AF28: 3.76 | AG28: 0 | AH28: 32 | AI28: 4.25 | AJ28: 2.220446049e-16
A29: 545 | B29: LYS EPSM | C29: MonoSites | D29: 8.96 | E29: 0.71 | F29: 0 | G29: 0 | H29: 1 | I29: 31EXPERT | J29: 4.55 | K29: 31ASSIST | L29: 0 | M29: 31SOUTIEN | N29: 2.51 | O29: 31550 | P29: 2.51 | Q29: 31NREF | R29: 0 | S29: 31FP | T29: 0 | U29: 32EXPERT | V29: 4.41 | W29: 32ASSIST | X29: 0.71 | Y29: 32SOUTIEN | Z29: 0 | AA29: 32NREF | AB29: 0 | AC29: 32FP | AD29: 1 | AE29: 31 | AF29: 7.06 | AG29: 0 | AH29: 32 | AI29: 6.12 | AJ29: 0
A30: 546 | B30: ENVOL EPSM | C30: SitesMulti | D30: 4.34 | E30: 0 | F30: 0.2 | G30: 0.3 | H30: 0.5 | I30: 31EXPERT | J30: 1.15 | K30: 31ASSIST | L30: 0 | M30: 31SOUTIEN | N30: 1.62 | O30: 31550 | P30: 1.62 | Q30: 31NREF | R30: 0 | S30: 31FP | T30: 0 | U30: 32EXPERT | V30: 3.19 | W30: 32ASSIST | X30: 0 | Y30: 32SOUTIEN | Z30: 0.2 | AA30: 32NREF | AB30: 0.3 | AC30: 32FP | AD30: 0.5 | AE30: 31 | AF30: 2.77 | AG30: 0 | AH30: 32 | AI30: 4.19 | AJ30: 0
A31: 547 | B31: MUJON EPSM | C31: SitesMulti | D31: 4.98 | E31: 1.13 | F31: 0 | G31: 0.3 | H31: 0.41 | I31: 31EXPERT | J31: 1.36 | K31: 31ASSIST | L31: 0 | M31: 31SOUTIEN | N31: 1.24 | O31: 31550 | P31: 1.24 | Q31: 31NREF | R31: 0 | S31: 31FP | T31: 0 | U31: 32EXPERT | V31: 3.62 | W31: 32ASSIST | X31: 1.13 | Y31: 32SOUTIEN | Z31: 0 | AA31: 32NREF | AB31: 0.3 | AC31: 32FP | AD31: 0.41 | AE31: 31 | AF31: 2.61 | AG31: 0.01 | AH31: 32 | AI31: 5.47 | AJ31: 0.01
A32: 549 | B32: CROISEE DE JOUX EPSM | C32: MonoSites | D32: 6.18 | E32: 0.25 | F32: 0.48 | G32: 0 | H32: 1.69 | I32: 31EXPERT | J32: 1.41 | K32: 31ASSIST | L32: 0 | M32: 31SOUTIEN | N32: 1.91 | O32: 31550 | P32: 1.91 | Q32: 31NREF | R32: 0 | S32: 31FP | T32: 0 | U32: 32EXPERT | V32: 4.77 | W32: 32ASSIST | X32: 0.25 | Y32: 32SOUTIEN | Z32: 0.48 | AA32: 32NREF | AB32: 0 | AC32: 32FP | AD32: 1.69 | AE32: 31 | AF32: 3.33 | AG32: 0.01 | AH32: 32 | AI32: 7.19 | AJ32: 0
A33: 551 | B33: ROUVRAIE EPSM | C33: MonoSites | D33: 4.67 | E33: 2.38 | F33: 0.6 | G33: 0 | H33: 0 | I33: 31EXPERT | J33: 1.97 | K33: 31ASSIST | L33: 0.13 | M33: 31SOUTIEN | N33: 2.91 | O33: 31550 | P33: 2.91 | Q33: 31NREF | R33: 0 | S33: 31FP | T33: 0 | U33: 32EXPERT | V33: 2.7 | W33: 32ASSIST | X33: 2.25 | Y33: 32SOUTIEN | Z33: 0.6 | AA33: 32NREF | AB33: 0 | AC33: 32FP | AD33: 0 | AE33: 31 | AF33: 5.02 | AG33: 0.01 | AH33: 32 | AI33: 5.56 | AJ33: 0.01
A34: 553 | B34: ROTILLON EPSM | C34: SitesMulti | D34: 7.55 | E34: 0 | F34: 1.9 | G34: 0 | H34: 0 | I34: 31EXPERT | J34: 4.16 | K34: 31ASSIST | L34: 0 | M34: 31SOUTIEN | N34: 1.56 | O34: 31550 | P34: 1.56 | Q34: 31NREF | R34: 0 | S34: 31FP | T34: 0 | U34: 32EXPERT | V34: 3.39 | W34: 32ASSIST | X34: 0 | Y34: 32SOUTIEN | Z34: 1.9 | AA34: 32NREF | AB34: 0 | AC34: 32FP | AD34: 0 | AE34: 31 | AF34: 5.72 | AG34: -4.440892099e-16 | AH34: 32 | AI34: 5.3 | AJ34: 0.01
A35: 558 | B35: OISEAUX EPSM | C35: MonoSites | D35: 2.32 | E35: 1 | F35: 1 | G35: 0 | H35: 2 | I35: 31EXPERT | J35: 2.32 | K35: 31ASSIST | L35: 0 | M35: 31SOUTIEN | N35: 2.12 | O35: 31550 | P35: 1.12 | Q35: 31NREF | R35: 0 | S35: 31FP | T35: 1 | U35: 32EXPERT | V35: 0 | W35: 32ASSIST | X35: 1 | Y35: 32SOUTIEN | Z35: 0 | AA35: 32NREF | AB35: 0 | AC35: 32FP | AD35: 1 | AE35: 31 | AF35: 5.45 | AG35: 0.01 | AH35: 32 | AI35: 2 | AJ35: 0
A36: 562 | B36: ODMER EPSM | C36: SitesMulti | D36: 8.21 | E36: 2.63 | F36: 6.42 | G36: 0 | H36: 0.16 | I36: 31EXPERT | J36: 4.44 | K36: 31ASSIST | L36: 1 | M36: 31SOUTIEN | N36: 4.82 | O36: 31550 | P36: 0.1 | Q36: 31NREF | R36: 0 | S36: 31FP | T36: 0 | U36: 32EXPERT | V36: 3.77 | W36: 32ASSIST | X36: 1.63 | Y36: 32SOUTIEN | Z36: 1.7 | AA36: 32NREF | AB36: 0 | AC36: 32FP | AD36: 0.16 | AE36: 31 | AF36: 10.26 | AG36: -8.881784197e-16 | AH36: 32 | AI36: 7.27 | AJ36: 0.01
A37: 566 | B37: ROCHELLE EPSM | C37: SitesMulti | D37: n.a | E37: n.a | F37: n.a | G37: n.a | H37: n.a | O37: 31550 | P37: n.a
B39: Totaux | D39: =SUM(D2:D37) -> 218.39 | E39: =SUM(E2:E37) -> 78.86 | F39: =SUM(F2:F37) -> 83.57 | G39: =SUM(G2:G37) -> 4.53 | H39: =SUM(H2:H37) -> 31.13 | J39: =SUM(J2:J37) -> 149.97 | L39: =SUM(L2:L37) -> 28.54 | N39: =SUM(N2:N37) -> 134.86 | P39: =SUM(P2:P37) -> 69.93 | R39: =SUM(R2:R37) -> 3.06 | T39: =SUM(T2:T37) -> 9.48 | V39: =SUM(V2:V37) -> 68.42 | X39: =SUM(X2:X37) -> 50.32 | Z39: =SUM(Z2:Z37) -> 18.64 | AB39: =SUM(AB2:AB37) -> 1.47 | AD39: =SUM(AD2:AD37) -> 21.65 | AF39: =SUM(AF2:AF37) -> 326.17 | AG39: =SUM(AG2:AG37) -> 0.26 | AI39: =SUM(AI2:AI37) -> 160.75 | AJ39: =SUM(AJ2:AJ37) -> 0.25
H41: =D39+E39+F39+G39+H39+P39 -> 486.41 | AI41: =AF39+AI39 -> 486.92 | AJ41: =AI41-$H$41 -> 0.51
A45: 566 | B45: ROCHELLE EPSM | C45: SitesMulti | D45: =J45+V45 -> 0.87 | E45: =L45+X45 -> 0.86 | F45: =N45-P45+Z45 -> 0 | G45: =R45+AB45 -> 0 | H45: =T45+AD45 -> 0.33 | I45: 31EXPERT | J45: 0.87 | K45: 31ASSIST | L45: 0.26 | M45: 31SOUTIEN | N45: 0.56 | O45: 31550 | P45: 0.56 | Q45: 31NREF | R45: 0 | S45: 31FP | T45: 0 | U45: 32EXPERT | V45: 0 | W45: 32ASSIST | X45: 0.6 | Y45: 32SOUTIEN | Z45: 0 | AA45: 32NREF | AB45: 0 | AC45: 32FP | AD45: 0.33 | AE45: 31 | AF45: 1.7 | AG45: =AF45-J45-L45-N45-R45-T45 -> 0.01 | AH45: 32 | AI45: 0.93 | AJ45: =AI45-V45-X45-Z45-AB45-AD45 -> 0

Sheet 7.Doc DOT (hidden)
A3: 31000 - Autre personnel soignant ou fonctions non référencées - NREF | C3: Intégré au total du groupe 31
A4: 32000 - Autre personnel paramédical ou fonctions non référencées - NREF | C4: Intégré au total du groupe 32
A7: FonctionNr | B7: FonctionLibelle
A8: 31900 | B8: 31900 - Etudiant infirmier en stage - FP | C8: Intégré au total du groupe 31
A9: 31903 | B9: 31903 - Jeune auxiliaire de remplacement vacances (pas de formation) - FP | C9: Intégré au total du groupe 31
A10: 31904 | B10: 31904 - Pré-apprenti ou apprenti - FP | C10: Intégré au total du groupe 31
A11: 31905 | B11: 31905 - Pré-stagiaire en vue d'une formation professionnelle - FP | C11: Intégré au total du groupe 31
A12: 31999 | B12: 31999 - Personnel de soins "à conditions particulières" - FP | C12: Intégré au total du groupe 31
A13: 32901 | B13: 32901 - Stagiaire en animation ou en éducation - FP | C13: Intégré au total du groupe 32
A14: 32904 | B14: 32904 - Pré-apprenti ou apprenti - FP | C14: Intégré au total du groupe 32
A15: 32905 | B15: 32905 - Pré-stagiaire en vue d'une formation professionnelle - FP | C15: Intégré au total du groupe 32
A16: 32999 | B16: 32999 - Personnel paramédical "à conditions particulières" - FP | C16: Intégré au total du groupe 32

Sheet 202010_202005 EPSM_base (hidden)
A1: Minutes Plaisir
A2: No Plaisir | B2: UA Jointure | C2: Nom Jointure | D2: Mandat | E2: Lits T2021 | F2: Nom EMS | G2: 202010 minutes jour+nuit OPAS | H2: 202010 minutes jour | I2: 202010 minutes nuit | J2: 202005 minutes jour+nuit OPAS | K2: 202005 minutes jour | L2: 202005 minutes nuit | M2: 202010 Nbre Résidents Evalués | N2: 202005 Nbre Résidents Evalués
A3: 01217 | B3: 217 | C3: ALEXANDRA EPSM | D3: PA | E3: 17 | F3: CENTRE HEBERGEMENT PSY EMS | G3: 115.69 | H3: 103.25 | I3: 12.46 | J3: 102.34 | K3: 92.82 | L3: 10.03 | M3: 12 | N3: 12
A4: 01417 | B4: 254 | C4: BOIS-GENTIL RUCHONNET EPSM | D4: PA | E4: 22 | F4: FOYER FEMININ ARMEE SALUT EPSM | G4: 118.1 | H4: 109.04 | I4: 9.07 | J4: 108.22 | K4: 99.88 | L4: 8.96 | M4: 21 | N4: 22
A5: 01416 | B5: 255 | C5: BOIS-GENTIL VALLON EPSM | D5: PA | E5: 32 | F5: RESIDENCE ARMEE SALUT EPSM | G5: 120.69 | H5: 111.09 | I5: 9.72 | J5: 110.9 | K5: 102.58 | L5: 8.64 | M5: 31 | N5: 31
A6: 01260 | B6: 260 | C6: BORDE EPSM | D6: PA | E6: 25 | F6: BORDE SISP EMS | G6: 188.07 | H6: 177.97 | I6: 11.32 | J6: 150.75 | K6: 142.17 | L6: 9.6 | M6: 25 | N6: 25
A7: 01302 | B7: 302 | C7: TILLEULS EPSM | D7: PA | E7: 27 | F7: TILLEULS HOME-AGE EMS | G7: 202.38 | H7: 180 | I7: 26.02 | J7: 217.93 | K7: 194.73 | L7: 27.79 | M7: 25 | N7: 25
A8: 01303 | B8: 303 | C8: CLOS BERCHER EPSM | D8: PA | E8: 27 | F8: CLOS BERCHER BOAS EMS | G8: 118.7 | H8: 106.7 | I8: 12.62 | J8: 114.8 | K8: 104.12 | L8: 12.05 | M8: 22 | N8: 22
A9: 01313 | B9: 313 | C9: BRU EPSM | D9: PA | E9: 61 | F9: BRU EPSM | G9: 146.41 | H9: 136.15 | I9: 11.47 | J9: 130.06 | K9: 120.63 | L9: 11.15 | M9: 58 | N9: 58
A10: 01321 | B10: 321 | C10: COLOMBIERE EPSM | D10: PA | E10: 18 | F10: COLOMBIERE MONT-RIANT EMS | G10: 113.96 | H10: 106.49 | I10: 9.78 | J10: 106.8 | K10: 100.02 | L10: 8.7 | M10: 18 | N10: 18
A11: 01324 | B11: 324 | C11: PRE CARRE EPSM | D11: PA | E11: 18 | F11: PRE CARRE MONT-RIANT EMS | G11: 112.9 | H11: 105.25 | I11: 12.27 | J11: 104.69 | K11: 97.42 | L11: 11.09 | M11: 19 | N11: 18
A12: 01343 | B12: 343 | C12: CHAMP FLEURI EPSM | D12: PA | E12: 38 | F12: CHAMP FLEURI EMS | G12: 154.77 | H12: 143.58 | I12: 12.23 | J12: 143.73 | K12: 132.6 | L12: 12.21 | M12: 37 | N12: 38
A13: 01349 | B13: 348 | C13: COLLONGES EPSM | D13: PA | E13: 15 | F13: COLLONGES EMS | G13: 97.24 | H13: 92.21 | I13: 6.4 | J13: 93.31 | K13: 88.04 | L13: 6.55 | M13: 14 | N13: 14
A14: 01347 | B14: 357 | C14: ORPHEE EPSM | D14: PA | E14: 25 | F14: MAISON ORPHEE EMS | G14: 92.53 | H14: 87.68 | I14: 6.03 | J14: 97.87 | K14: 92.35 | L14: 6.76 | M14: 23 | N14: 25
A15: 01362 | B15: 362 | C15: SANS SOUCI EPSM | D15: PA | E15: 36 | F15: SANS SOUCI HOME-AGE EMS | G15: 137.96 | H15: 122.79 | I15: 15.26 | J15: 134.76 | K15: 119.8 | L15: 15.86 | M15: 32 | N15: 32
A16: 01365 | B16: 365 | C16: MYOSOTIS EPSM | D16: PA | E16: 32 | F16: MYOSOTIS MONTHEROD EMS | G16: 123.08 | H16: 110.9 | I16: 12.26 | J16: 119.04 | K16: 107.99 | L16: 11.38 | M16: 28 | N16: 30
A17: 01376 | B17: 376 | C17: SYLVABELLE EPSM | D17: PA | E17: 28 | F17: SYLVABELLE EMS | G17: 132.85 | H17: 123.36 | I17: 9.62 | J17: 126.92 | K17: 117.09 | L17: 9.94 | M17: 16 | N17: 18
A18: 01415 | B18: 388 | C18: DUC EPSM | D18: PA | E18: 15 | F18: DUC EPSM | G18: 134.17 | H18: 122.2 | I18: 13.08 | J18: 126.88 | K18: 116.12 | L18: 13.53 | M18: 16 | N18: 19
A19: 01441 | B19: 441 | C19: AUBEPINES EPSM | D19: PA | E19: 18 | F19: AUBEPINES SISP EMS | G19: 161.79 | H19: 152.25 | I19: 10.79 | J19: 153.03 | K19: 145.03 | L19: 9.34 | M19: 18 | N19: 18
A20: 01476 | B20: 476 | C20: MIDI EPSM | D20: PA | E20: 12 | F20: MIDI FOYER SISP EMS | G20: 153.87 | H20: 148.85 | I20: 7.75 | J20: 155.72 | K20: 150.42 | L20: 8.32 | M20: 12 | N20: 12
A21: 01478 | B21: 478 | C21: PRAZ SECHAUD II EPSM | D21: PA | E21: 18 | F21: PRAZ-SECHAUD II HOME-AGE EMS | G21: 198.34 | H21: 175.04 | I21: 25.55 | J21: 193.34 | K21: 173.17 | L21: 21.78 | M21: 18 | N21: 17
A22: 01514 | B22: 514 | C22: TERRASSE EPSM | D22: PA | E22: 24 | F22: TERRASSE PRIMEROSE EMS | G22: 135 | H22: 122.59 | I22: 13.5 | J22: 131.67 | K22: 119.72 | L22: 13.23 | M22: 23 | N22: 25
A23: 01463 | B23: 517 | C23: SOLEIL EPSM | D23: PA | E23: 40 | F23: RESIDENCE SOLEIL MAGNIN EMS | G23: 114.25 | H23: 100.61 | I23: 14.68 | J23: 112.22 | K23: 99.65 | L23: 13.85 | M23: 42 | N23: 39
A24: 01460-01 | B24: 521 | C24: CHANELLA EPSM | D24: PA | E24: 21 | F24: CHANELLA GETAZ EMS | G24: 119.32 | H24: 108.49 | I24: 11.27 | J24: 110.42 | K24: 101.91 | L24: 9.23 | M24: 22 | N24: 19
A25: 01460-02 | B25: 522 | C25: POMMERAIE EPSM | D25: PA | E25: 13 | F25: POMMERAIE GETAZ EMS | G25: 123.74 | H25: 112.94 | I25: 10.91 | J25: 107.33 | K25: 98.32 | L25: 9.54 | M25: 13 | N25: 16
A26: 01518 | B26: 527 | C26: BETHEL EPSM | D26: PA | E26: 22 | F26: BETHEL PRAZ-SOLEIL EMS | G26: 93.74 | H26: 85.08 | I26: 8.66 | J26: 90.07 | K26: 83.51 | L26: 7.07 | M26: 5 | N26: 3
A27: 01270 | B27: 534 | C27: SOLEIL LEVANT EPSM | D27: PA | E27: 12 | F27: FONDATION DU LEVANT | G27: 171.94 | H27: 153.81 | I27: 20.19 | J27: 164.76 | K27: 148.13 | L27: 18.58 | M27: 12 | N27: 11
A28: 01494 | B28: 542 | C28: POINT DU JOUR EPSM | D28: PA | E28: 11 | F28: POINT JOUR EMS | G28: 114.92 | H28: 101.35 | I28: 13.57 | J28: 108.46 | K28: 96.29 | L28: 12.42 | M28: 11 | N28: 11
A29: 01414 | B29: 544 | C29: THIELE EPSM | D29: PA | E29: 18 | F29: THIELE (SIMONIN) EPSM | G29: 103 | H29: 98.11 | I29: 4.88 | J29: 96.9 | K29: 91.24 | L29: 5.66 | M29: 18 | N29: 19
A30: 01419 | B30: 545 | C30: LYS EPSM | D30: PA | E30: 20 | F30: LYS EPSM | G30: 112.29 | H30: 104.09 | I30: 8.21 | J30: 112.62 | K30: 104.39 | L30: 8.23 | M30: 20 | N30: 16
A31: 01418 | B31: 546 | C31: ENVOL MORGES EPSM | D31: PA | E31: 9 | F31: ENVOL (APSIP) EPSM | G31: 140.79 | H31: 130.87 | I31: 9.92 | J31: 133.94 | K31: 124.77 | L31: 9.17 | M31: 9 | N31: 9
A32: 01420 | B32: 547 | C32: ENVOL YVERDON EPSM | D32: PA | E32: 9 | F32: MUJON (APSIP) EPSM | G32: 140.57 | H32: 134.01 | I32: 6.56 | J32: 114.88 | K32: 107.48 | L32: 7.41 | M32: 9 | N32: 8
A33: 01411 | B33: 549 | C33: CROISEE DE JOUX EPSM | D33: PA | E33: 19 | F33: CROISEE DE JOUX ABBAYE EPSM | G33: 93.69 | H33: 91.97 | I33: 1.72 | J33: 83.68 | K33: 82.4 | L33: 1.59 | M33: 17 | N33: 14
A34: 01413 | B34: 551 | C34: ROUVRAIE EPSM | D34: PA | E34: 15 | F34: ROUVRAIE (DEO GRATIAS) EPSM | G34: 90.65 | H34: 84.39 | I34: 6.35 | J34: 90.13 | K34: 83.69 | L34: 6.44 | M34: 16 | N34: 15
A35: 01412 | B35: 553 | C35: ROTILLON EPSM | D35: PA | E35: 21 | F35: ROTILLON (ORME) EPSM | G35: 139.9 | H35: 131.11 | I35: 10.92 | J35: 123.44 | K35: 114.03 | L35: 9.41 | M35: 21 | N35: 21
A36: 01346 | B36: 558 | C36: OISEAUX EPSM | D36: PA | E36: 12 | F36: LES OISEAUX ACHILLE ALEX EPSM | G36: 154.21 | H36: 145.75 | I36: 9.83 | J36: 138.17 | K36: 130.74 | L36: 8.93 | M36: 12 | N36: 12
A37: 01410 | B37: 562 | C37: ODMER EPSM MAINT | D37: PA | E37: 28 | F37: ENTRAIDE (MAGNIN) EPSM | G37: 89.5 | H37: 82.09 | I37: 11.4 | J37: 85.02 | K37: 77.89 | L37: 9.17 | M37: 27 | N37: 26
A38: 01430 | B38: 562 | C38: ODMER EPSM INSERT | D38: PA | E38: 12 | F38: ODMER JEUNES | G38: 91.29 | H38: 83.37 | I38: 9.47 | J38: 93.74 | K38: 86.83 | L38: 10.28 | M38: 11 | N38: 10
A39: 01430 | B39: 562 | C39: ODMER EPSM | D39: PA | E39: 40 | F39: ODMER total | G39: 90.037 | H39: 82.474 | I39: 10.821 | J39: 87.636 | K39: 80.572 | L39: 9.503 | M39: 38 | N39: 36
A40: 01566 | B40: 566 | C40: ROCHELLE EPSM | D40: PA | E40: 22 | F40: EPSM LA ROCHELLE | G40: 127.88 | H40: 116.04 | I40: 11.88 | J40: 120.49 | K40: 108.56 | L40: 13.97 | M40: 20 | N40: 22
